{"text_format":"1","workbook":"xlsx","n_sheets":2,"sheets":["Formulário de Ação","Banco de Dados"],"not_rendered":{"charts":0,"images":1,"macros":1,"external_links":0,"defined_names":12,"comments":1,"pivot_tables":0},"unopened":[],"bounds":{"document_bytes":16777216,"sheet_cells":100000,"rows_first":2000,"rows_last":500,"rows_between":2000,"halvings":0,"cell_chars":16384,"cell_head_chars":4096},"cells_cut":0,"cells_raw":0,"read":"whole","date_system":"1900"}

{"sheet":"Formulário de Ação","index":0,"n_rows":65,"n_cols":12,"rows_kept":65,"cut":false,"hidden":false,"merged":[[35,1,36,1],[0,1,7,12],[8,1,8,12],[20,2,20,8],[18,1,18,12],[14,2,14,8],[33,1,33,12],[24,2,24,4],[26,2,31,11],[24,6,24,8],[10,11,11,11],[10,2,11,8],[56,2,60,11],[54,2,54,7],[13,2,13,11],[70,14,71,16],[38,2,38,7],[46,2,46,7],[62,2,62,7],[64,2,68,11],[22,2,22,8],[20,9,20,10],[35,2,36,7],[15,2,16,11],[48,2,52,11],[40,2,44,11]]}
[]
[]
[]
[]
[]
[]
[]
[]
[null,"DADOS DO PROGRAMA"]
[]
[null," Nome do Programa",null,null,null,null,null,null,null,null,"Área Estratégica",{"$f":"IFERROR(INDEX('Banco de Dados'!E:E,MATCH(C11,'Banco de Dados'!C:C,0)),\"\")","v":""}]
[]
[]
[null,"Órgão Responsável",{"$f":"IFERROR(INDEX('Banco de Dados'!J:J,MATCH(C11,'Banco de Dados'!C:C,0)),\"\")","v":""}]
[]
[null,"Público Alvo",{"$f":"IFERROR(INDEX('Banco de Dados'!F:F,MATCH(C11,'Banco de Dados'!C:C,0)),\"\")","v":""}]
[]
[]
[null,"DADOS DA AÇÃO"]
[]
[null," Nome da Ação",null,null,null,null,null,null,null,"Gestor Responsável "]
[]
[null,"Unidade Orçamentária",null,null,null,null,null,null,null,null,"Tipo da Ação"]
[]
[null,"Esfera Orçamentária",null,null,null,"Função",null,null,null,null,"Subfunção"]
[]
[null,"Finalidade da Ação"]
[]
[]
[]
[]
[]
[]
[null,"DADOS DO PRODUTO"]
[]
[null,"Identificador de Quantidade"]
[]
[]
[null,"Produto 1",null,null,null,null,null,null,null,null,"Unidade de Medida"]
[]
[null,"Microrregião"]
[]
[]
[]
[]
[]
[null,"Produto 2",null,null,null,null,null,null,null,null,"Unidade de Medida"]
[]
[null,"Microrregião"]
[]
[]
[]
[]
[]
[null,"Produto 3",null,null,null,null,null,null,null,null,"Unidade de Medida"]
[]
[null,"Microrregião"]
[]
[]
[]
[]
[]
[null,"Produto 4",null,null,null,null,null,null,null,null,"Unidade de Medida"]
[]
[null,"Microrregião"]

{"sheet":"Banco de Dados","index":1,"n_rows":137,"n_cols":27,"rows_kept":137,"cut":false,"hidden":false,"merged":[]}
["Código do Programa","Colunas1","Nome do programa","Nome do Programa2","Área Estratégica","Público Alvo","Objetivo","Situação do Programa","Código da UO","Nome do òrgão","UO Pograma","Colunas2","Tipo de Ação",null,"Identificador de Quantidade",".","Unidade de Medida",null,"Esfera Orçamentária",null,"UO Ação",null,"Função","Subfunções","código da UO",null,"UO"]
["02","-",{"$f":"CONCATENATE(Tabela2[[#This Row],[Código do Programa]],Tabela2[[#This Row],[Colunas1]],Tabela2[[#This Row],[Nome do Programa2]])","v":"02-PREVIDÊNCIA SOCIAL "},"PREVIDÊNCIA SOCIAL ","GESTÃO PÚBLICA INOVADORA","SERVIDORES PÚBLICOS ESTADUAIS E PENSIONISTAS","GARANTIR O ATENDIMENTO DE PRECEITOS LEGAIS E ADMINISTRATIVOS RELATIVOS À ÁREA DE PREVIDÊNCIA SOCIAL, ASSEGURANDO A CONCESSÃO DE BENEFÍCIOS A SERVIDORES INATIVOS E PENSIONISTAS, VINCULADOS OU NÃO AO REGIME PRÓPRIO DE PREVIDÊNCIA DO ESTADO.","EM ANDAMENTO",60201,"60 - INSTITUTO DE PREVIDÊNCIA DOS SERVIDORES DO ESTADO DO ESPÍRITO SANTO","INSTITUTO DE PREVIDÊNCIA DOS SERVIDORES DO ESTADO DO ESPÍRITO SANTO",".","ATIVIDADE",null,"Acumulativo",null,"Hectares ",null,"10 - ORÇAMENTO FISCAL",null,{"$f":"CONCATENATE(Y2,Z2,AA2,)","v":"01101 - ASSEMBLEIA LEGISLATIVA DO ESTADO DO ESPÍRITO SANTO"},".","1 - LEGISLATIVA","031 – Ação Legislativa","01101"," - ","ASSEMBLEIA LEGISLATIVA DO ESTADO DO ESPÍRITO SANTO"]
[10,"-",{"$f":"CONCATENATE(Tabela2[[#This Row],[Código do Programa]],Tabela2[[#This Row],[Colunas1]],Tabela2[[#This Row],[Nome do Programa2]])","v":"10-PROMOÇÃO, AUTONOMIA E DEFESA DOS DIREITOS DAS MULHERES"},"PROMOÇÃO, AUTONOMIA E DEFESA DOS DIREITOS DAS MULHERES","DESENVOLVIMENTO SOCIAL E DIREITOS HUMANOS","MULHERES","PROPORCIONAR ÀS MULHERES FERRAMENTAS PARA SUA AUTONOMIA E MECANISMO DE DEFESA DE SEUS DIREITOS, PROPORCIONANDO A IGUALDADE DE GÊNEROS.","EM ANDAMENTO",48101,"48 - SECRETARIA DE ESTADO DE DIREITOS HUMANOS \n","SECRETARIA DE ESTADO DE DIREITOS HUMANOS ",".","OPERAÇÃO ESPECIAL",null,"Somatório",null,"Km",null,"20 - ORÇAMENTO DA SEGURIDADE SOCIAL",null,{"$f":"CONCATENATE(Y3,Z3,AA3,)","v":"02101 - TRIBUNAL DE CONTAS DO ESTADO DO ESPÍRITO SANTO"},".","2 - JUDICIÁRIA","032 – Controle Externo","02101"," - ","TRIBUNAL DE CONTAS DO ESTADO DO ESPÍRITO SANTO"]
[14,"-",{"$f":"CONCATENATE(Tabela2[[#This Row],[Código do Programa]],Tabela2[[#This Row],[Colunas1]],Tabela2[[#This Row],[Nome do Programa2]])","v":"14-FORTALECIMENTO DO SISTEMA DE ATENDIMENTO SOCIOEDUCATIVO"},"FORTALECIMENTO DO SISTEMA DE ATENDIMENTO SOCIOEDUCATIVO","DESENVOLVIMENTO SOCIAL E DIREITOS HUMANOS","ADOLESCENTE EM CUMPRIMENTO DE MEDIDAS SOCIOEDUCATIVAS","ASSEGURAR OS DIREITOS INDIVIDUAIS  DO ADOLESCENTE EM CUMPRIMENTO DE MEDIDA SOCIOEDUCATIVA À LUZ DO SISTEMA NACIONAL DE ATENDIMENTO SOCIOEDUCATIVO E DO ESTATUTO DA CRIANÇA E DO ADOLESCENTE.","EM ANDAMENTO",48201,"48 - SECRETARIA DE ESTADO DE DIREITOS HUMANOS \n","INSTITUTO DE ATENDIMENTO SOCIOEDUCATIVO DO ESPÍRITO SANTO",".","PROJETO",null,null,null,"Km² ",null,"30 - ORÇAMENTO DE INVESTIMENTO",null,"03101 - TRIBUNAL DE JUSTIÇA DO ESTADO DO ESPÍRITO SANTO",".","3 - ESSENCIAL À JUSTIÇA","061 – Ação Judiciária","03101"," - ","TRIBUNAL DE JUSTIÇA DO ESTADO DO ESPÍRITO SANTO"]
[17,"-",{"$f":"CONCATENATE(Tabela2[[#This Row],[Código do Programa]],Tabela2[[#This Row],[Colunas1]],Tabela2[[#This Row],[Nome do Programa2]])","v":"17-FORTALECIMENTO DA PESQUISA CIENTÍFICA, TECNOLÓGICA E DA INOVAÇÃO"},"FORTALECIMENTO DA PESQUISA CIENTÍFICA, TECNOLÓGICA E DA INOVAÇÃO","EDUCAÇÃO PARA O FUTURO","ESTUDANTES DE GRADUAÇÃO E PÓS-GRADUAÇÃO, PROFESSORES E ESTUDANTES DA REDE PÚBLICA DE ENSINO, PESQUISADORES E EMPREENDEDORES VINCULADOS AO SISTEMA DE C,T&I","CONECTAR O ECOSSISTEMA CAPIXABA DE CIÊNCIA, TECNOLOGIA E INOVAÇÃO AOS DESAFIOS SOCIOECONÔMICOS E AMBIENTAIS.","EM ANDAMENTO",32101,"32 - SECRETARIA DE ESTADO DA CIÊNCIA, TECNOLOGIA, INOVAÇÃO, EDUCAÇÃO PROFISSIONAL E DESENVOLVIMENTO ECONONÔMICO","SECRETARIA DE ESTADO DE CIÊNCIA, TECNOLOGIA, INOVAÇÃO E EDUCAÇÃO PROFISSIONAL",".",null,null,null,null,"M²",null,null,null,"03901 - FUNDO ESPECIAL DO PODER JUDICIÁRIO DO ESTADO DO ESPÍRITO SANTO",".","4 - ADMINISTRAÇÃO","062 – Defesa do Interesse Público no Processo Judiciário","03901"," - ","FUNDO ESPECIAL DO PODER JUDICIÁRIO DO ESTADO DO ESPÍRITO SANTO"]
[18,"-",{"$f":"CONCATENATE(Tabela2[[#This Row],[Código do Programa]],Tabela2[[#This Row],[Colunas1]],Tabela2[[#This Row],[Nome do Programa2]])","v":"18-FORTALECIMENTO DO SISTEMA ESTADUAL DE MEIO AMBIENTE E RECURSOS HÍDRICOS"},"FORTALECIMENTO DO SISTEMA ESTADUAL DE MEIO AMBIENTE E RECURSOS HÍDRICOS","AGRICULTURA E MEIO AMBIENTE","SOCIEDADE EM GERAL","SUSTENTAR, IMPLEMENTAR E FORTALECER AS POLÍTICAS ESTADUAIS DE MEIO AMBIENTE E RECURSOS HÍDRICOS, PROMOVER O USO RACIONAL DA ÁGUA E A AMPLIAÇÃO DA SEGURANÇA HÍDRICA, INCLUSIVE COM A IMPLEMENTAÇÃO DE AÇÕES DE PREVENÇÃO E ADAPTAÇÃO AOS EFEITOS DAS MUDANÇAS CLIMÁTICAS.","EM ANDAMENTO",41902,"41 - SECRETARIA DE ESTADO DE MEIO AMBIENTE E RECURSOS HÍDRICOS \n","FUNDO ESTADUAL DE RECURSOS HÍDRICOS E FLORESTAIS DO ESPÍRITO SANTO",".",null,null,null,null,"M³",null,null,null,"05101 - MINISTÉRIO PÚBLICO DO ESTADO DO ESPÍRITO SANTO",".","5 - DEFESA NACIONAL","091 – Defesa da Ordem Jurídica","05101"," - ","MINISTÉRIO PÚBLICO DO ESTADO DO ESPÍRITO SANTO"]
[19,"-",{"$f":"CONCATENATE(Tabela2[[#This Row],[Código do Programa]],Tabela2[[#This Row],[Colunas1]],Tabela2[[#This Row],[Nome do Programa2]])","v":"19-GESTÃO E ASSESSORAMENTO GOVERNAMENTAL"},"GESTÃO E ASSESSORAMENTO GOVERNAMENTAL","GESTÃO PÚBLICA INOVADORA","ÓRGÃOS PÚBLICOS ESTADUAIS","PRESTAR ASSESSORIA, APOIO E INFRAESTRUTURA NECESSÁRIA ÀS ATIVIDADES DOS GABINETES DO GOVERNADOR, VICE GOVERNADOR E ÀS SECRETARIAS EXTRAORDINÁRIAS PARA CUMPRIMENTO DE SUAS FUNÇÕES E COMPETÊNCIAS.","EM ANDAMENTO",19101,"10 - GOVERNADORIA DO ESTADO \n","GABINETE DO VICE-GOVERNADOR",".",null,null,null,null,"Metro",null,null,null,"05901 - FUNDO ESTADUAL DE REPARAÇÃO DE INTERESSES DIFUSOS LESADOS",".","6 - SEGURANÇA PÚBLICA","092 – Representação Judicial e Extrajudicial","05901"," - ","FUNDO ESTADUAL DE REPARAÇÃO DE INTERESSES DIFUSOS LESADOS"]
[23,"-",{"$f":"CONCATENATE(Tabela2[[#This Row],[Código do Programa]],Tabela2[[#This Row],[Colunas1]],Tabela2[[#This Row],[Nome do Programa2]])","v":"23-JUSTIÇA ACESSÍVEL COM SOLUÇÃO DE DEMANDAS EFETIVA, ADEQUADA E EM TEMPO RAZOÁVEL"},"JUSTIÇA ACESSÍVEL COM SOLUÇÃO DE DEMANDAS EFETIVA, ADEQUADA E EM TEMPO RAZOÁVEL","PODERES","INDIVÍDUOS E ORGANIZAÇÕES DA SOCIEDADE QUE BUSCAM A TUTELA JURISDICIONAL","ASSEGURAR A TODOS, INDISTINTAMENTE, A SOLUÇÃO ADEQUADA DOS CONFLITOS APRESENTADOS À JUSTIÇA CAPIXABA DE FORMA ACESSÍVEL, CÉLERE E EFETIVA, CONTRIBUINDO PARA A PROMOÇÃO DA PAZ SOCIAL E PARA O FORTALECIMENTO DO ESTADO DEMOCRÁTICO DE DIREITO.","EM ANDAMENTO",3101,"03 -  PODER JUDICIÁRIO DO ESTADO DO ESPÍRITO SANTO","TRIBUNAL DE JUSTIÇA DO ESTADO DO ESPÍRITO SANTO",".",null,null,null,null,"Percentual",null,null,null,"05902 - FUNDO ESPECIAL DO MINISTÉRIO PÚBLICO DO ESTADO DO ESPÍRITO SANTO",".","7 - RELAÇÕES EXTERIORES","121 – Planejamento e Orçamento","05902"," - ","FUNDO ESPECIAL DO MINISTÉRIO PÚBLICO DO ESTADO DO ESPÍRITO SANTO"]
[24,"-",{"$f":"CONCATENATE(Tabela2[[#This Row],[Código do Programa]],Tabela2[[#This Row],[Colunas1]],Tabela2[[#This Row],[Nome do Programa2]])","v":"24-EXERCÍCIO DA FUNÇÃO CONSTITUCIONAL E DO CONTROLE SOCIAL"},"EXERCÍCIO DA FUNÇÃO CONSTITUCIONAL E DO CONTROLE SOCIAL","PODERES","INTEGRANTES E SETORES DA SOCIEDADE QUE ESTEJAM COM SEUS DIREITOS EM RISCO","GARANTIR E APRIMORAR A ATUAÇÃO MINISTERIAL, JUDICIAL E EXTRAJUDICIAL, NA DEFESA DA ORDEM JURÍDICA, DO REGIME DEMOCRÁTICO E DOS DIREITOS SOCIAIS INDIVIDUAIS INDISPONÍVEIS.","EM ANDAMENTO",5101,"05 - MINISTÉRIO PÚBLICO DO ESTADO DO ESPÍRITO SANTO \n","MINISTÉRIO PÚBLICO DO ESTADO DO ESPÍRITO SANTO",".",null,null,null,null,"Por Mil",null,null,null,"06101 - DEFENSORIA PÚBLICA DO ESTADO DO ESPÍRITO SANTO",".","8 - ASSISTÊNCIA SOCIAL","122 – Administração Geral","06101"," - ","DEFENSORIA PÚBLICA DO ESTADO DO ESPÍRITO SANTO"]
[26,"-",{"$f":"CONCATENATE(Tabela2[[#This Row],[Código do Programa]],Tabela2[[#This Row],[Colunas1]],Tabela2[[#This Row],[Nome do Programa2]])","v":"26-INCLUIR"},"INCLUIR","DESENVOLVIMENTO SOCIAL E DIREITOS HUMANOS","DESEMPREGADOS E FAMÍLIAS EM SITUAÇÃO DE POBREZA E EXTREMA POBREZA","REDUZIR A POBREZA, PROMOVENDO A INCLUSÃO SOCIAL, A CIDADANIA, O EMPREGO E A EMANCIPAÇÃO DAS FAMÍLIAS CAPIXABAS QUE SE ENCONTREM EM CONDIÇÃO DE EXTREMA VULNERABILIDADE SOCIOECONÔMICA.","EM ANDAMENTO",47101,"47 - SECRETARIA DE ESTADO DE TRABALHO, ASSISTÊNCIA E DESENVOLVIMENTO SOCIAL \n","SECRETARIA DE ESTADO DE TRABALHO, ASSISTÊNCIA E DESENVOLVIMENTO SOCIAL",".",null,null,null,null,"Tonelada",null,null,null,"06901 - FUNDO DE APARELHAMENTO DA DEFENSORIA PÚBLICA",".","9 - PREVIDÊNCIA SOCIAL","123 – Administração Financeira","06901"," - ","FUNDO DE APARELHAMENTO DA DEFENSORIA PÚBLICA"]
[27,"-",{"$f":"CONCATENATE(Tabela2[[#This Row],[Código do Programa]],Tabela2[[#This Row],[Colunas1]],Tabela2[[#This Row],[Nome do Programa2]])","v":"27-GESTÃO ESTRATÉGICA DE PESSOAS"},"GESTÃO ESTRATÉGICA DE PESSOAS","GESTÃO PÚBLICA INOVADORA","SERVIDORES PÚBLICOS ESTADUAIS","PROPICIAR A IMPLEMENTAÇÃO E A EXECUÇÃO DA POLÍTICA DE GESTÃO DE PESSOAS NO PODER EXECUTIVO ESTADUAL.","EM ANDAMENTO",31201,"28 - SECRETARIA DE ESTADO DE GESTÃO E RECURSOS HUMANOS \n","INSTITUTO DE DEFESA AGROPECUÁRIA E FLORESTAL DO ESPÍRITO SANTO",".",null,null,null,null,"Unidade",null,null,null,"10101 - SECRETARIA DA CASA CIVIL",".","10 - SAÚDE","124 – Controle Interno","10101"," - ","SECRETARIA DA CASA CIVIL"]
[32,"-",{"$f":"CONCATENATE(Tabela2[[#This Row],[Código do Programa]],Tabela2[[#This Row],[Colunas1]],Tabela2[[#This Row],[Nome do Programa2]])","v":"32-GESTÃO E SUPORTE EDUCACIONAL"},"GESTÃO E SUPORTE EDUCACIONAL","EDUCAÇÃO PARA O FUTURO","PROFISSIONAIS DA EDUCAÇÃO E ESCOLAS","REALIZAR SUPORTE ÀS ATIVIDADES DE PLANEJAMENTO, GESTÃO E EXECUÇÃO DAS POLÍTICAS EDUCACIONAIS, PROPORCIONANDO CONDIÇÕES ADEQUADAS DE FUNCIONAMENTO DAS UNIDADES ESCOLARES E DE ATENDIMENTO AOS ESTUDANTES.","EM ANDAMENTO",42101,"42 -  SECRETARIA DE ESTADO DA EDUCAÇÃO \n","SECRETARIA DE ESTADO DA EDUCAÇÃO",".",null,null,null,null,null,null,null,null,"10102 - SECRETARIA DA CASA MILITAR",".","11 - TRABALHO","125 – Normatização e Fiscalização","10102"," - ","SECRETARIA DA CASA MILITAR"]
[33,"-",{"$f":"CONCATENATE(Tabela2[[#This Row],[Código do Programa]],Tabela2[[#This Row],[Colunas1]],Tabela2[[#This Row],[Nome do Programa2]])","v":"33-MELHORIA DA QUALIDADE DO ENSINO E DA APRENDIZAGEM NA REDE PÚBLICA COM EQUIDADE"},"MELHORIA DA QUALIDADE DO ENSINO E DA APRENDIZAGEM NA REDE PÚBLICA COM EQUIDADE","EDUCAÇÃO PARA O FUTURO","ALUNOS DAS REDES PÚBLICAS ESTADUAL E MUNICIPAIS DE ENSINO","ELEVAR O NÍVEL DE APRENDIZAGEM, GARANTIR O ACESSO, REDUZIR OS ÍNDICES DE ABANDONO E EVASÃO, DIMINUIR AS DESIGUALDADES EDUCACIONAIS NAS REDES PÚBLICAS ESTADUAL E MUNICIPAIS DE MODO A ALCANÇAR AS METAS DO PLANO ESTADUAL DE EDUCAÇÃO.","EM ANDAMENTO",42101,"42 -  SECRETARIA DE ESTADO DA EDUCAÇÃO \n","SECRETARIA DE ESTADO DA EDUCAÇÃO",".",null,null,null,null,null,null,null,null,"10103 - SECRETARIA DE ESTADO DE CONTROLE E TRANSPARÊNCIA",".","12 - EDUCAÇÃO","126 – Tecnologia da Informação","10103"," - ","SECRETARIA DE ESTADO DE CONTROLE E TRANSPARÊNCIA"]
[35,"-",{"$f":"CONCATENATE(Tabela2[[#This Row],[Código do Programa]],Tabela2[[#This Row],[Colunas1]],Tabela2[[#This Row],[Nome do Programa2]])","v":"35-ES MAIS SUSTENTÁVEL"},"ES MAIS SUSTENTÁVEL","DESENVOLVIMENTO ECONÔMICO","EMPREENDEDORES E ENTES PÚBLICOS","MELHORAR A COMPETITIVIDADE, O AMBIENTE DE NEGÓCIOS E DE INOVAÇÃO DE FORMA A APRIMORAR OS FATORES QUE INFLUENCIAM A ATRAÇÃO E AMPLIAÇÃO DOS INVESTIMENTOS, COM FOCO NA DIVERSIFICAÇÃO DA ECONOMIA ESTADUAL, NA REDUÇÃO DAS DESIGUALDADES REGIONAIS E NA SUSTENTABILIDADE.","EM ANDAMENTO",32204,"32 - SECRETARIA DE ESTADO DA CIÊNCIA, TECNOLOGIA, INOVAÇÃO, EDUCAÇÃO PROFISSIONAL E DESENVOLVIMENTO ECONONÔMICO\n","AGÊNCIA DE DESENVOLVIMENTO DAS MICRO E PEQUENAS EMPRESAS E DO EMPREENDEDORISMO",".",null,null,null,null,null,null,null,null,"10104 - SUPERINTENDÊNCIA ESTADUAL DE COMUNICAÇÃO SOCIAL",".","13 - CULTURA","127 – Ordenamento Territorial","10104"," - ","SUPERINTENDÊNCIA ESTADUAL DE COMUNICAÇÃO SOCIAL"]
[36,"-",{"$f":"CONCATENATE(Tabela2[[#This Row],[Código do Programa]],Tabela2[[#This Row],[Colunas1]],Tabela2[[#This Row],[Nome do Programa2]])","v":"36-FORÇA PELA VIDA"},"FORÇA PELA VIDA","SEGURANÇA EM DEFESA DA VIDA","PEDESTRES E USUÁRIOS DOS MEIOS DE TRANSPORTE RODOVIÁRIO","VALORIZAR A VIDA NO TRÂNSITO, POR MEIO DE ATIVIDADES DE EDUCAÇÃO, CONSCIENTIZAÇÃO, FISCALIZAÇÃO E PREVENÇÃO DE ACIDENTES NO TRÂNSITO A FIM DE REDUZIR O NÚMERO DE ACIDENTES.","EM ANDAMENTO",45202,"45 - SECRETARIA DE ESTADO DA SEGURANCA PÚBLICA E DEFESA SOCIAL \n","DEPARTAMENTO ESTADUAL DE TRÂNSITO",".",null,null,null,null,null,null,null,null,"10109 - SECRETARIA DE ESTADO DO GOVERNO",".","14 - DIREITOS DA CIDADANIA","128 – Formação de Recursos Humanos","10109"," - ","SECRETARIA DE ESTADO DO GOVERNO"]
[38,"-",{"$f":"CONCATENATE(Tabela2[[#This Row],[Código do Programa]],Tabela2[[#This Row],[Colunas1]],Tabela2[[#This Row],[Nome do Programa2]])","v":"38-VIDA NO CAMPO"},"VIDA NO CAMPO","AGRICULTURA E MEIO AMBIENTE","PRODUTORES RURAIS, PESCADORES E AQUICULTORES, PREFEITURAS MUNICIPAIS, ORGANIZAÇÕES PÚBLICAS E PRIVADAS","PROMOVER O DESENVOLVIMENTO SOCIAL E PRODUTIVO DO SETOR AGROPECUÁRIO, AQUÍCOLA E PESQUEIRO, COM OFERTA DE SERVIÇOS E INFRAESTRUTURA, AUMENTANDO A PRODUÇÃO E A PRODUTIVIDADE, A QUALIDADE, A RENTABILIDADE, COM AGREGAÇÃO DE VALOR, INOVAÇÃO E SUSTENTABILIDADE, ALÉM DA PROTEÇÃO DOS RECURSOS NATURAIS E DA SANIDADE VEGETAL E ANIMAL.","EM ANDAMENTO",31101,"31 - SECRETARIA DE ESTADO DA AGRICULTURA, ABASTECIMENTO, AQUICULTURA E PESCA \n","SECRETARIA DE ESTADO DA AGRICULTURA, ABASTECIMENTO, AQUICULTURA E PESCA",".",null,null,null,null,null,null,null,null,"10201 - RÁDIO E TELEVISÃO ESPÍRITO SANTO",".","15 - URBANISMO","129 – Administração de Receitas","10201"," - ","RÁDIO E TELEVISÃO ESPÍRITO SANTO"]
[39,"-",{"$f":"CONCATENATE(Tabela2[[#This Row],[Código do Programa]],Tabela2[[#This Row],[Colunas1]],Tabela2[[#This Row],[Nome do Programa2]])","v":"39-PROMOÇÃO, DEFESA E ATENDIMENTO DOS DIREITOS DA CRIANÇA E DO ADOLESCENTE"},"PROMOÇÃO, DEFESA E ATENDIMENTO DOS DIREITOS DA CRIANÇA E DO ADOLESCENTE","DESENVOLVIMENTO SOCIAL E DIREITOS HUMANOS","CRIANÇAS E ADOLESCENTES","FORMULAR POLÍTICAS DE PROMOÇÃO, DEFESA E ATENDIMENTO CONFORME O ESTATUTO DA CRIANÇA E DO ADOLESCENTE.","EM ANDAMENTO",48901,"47 - SECRETARIA DE ESTADO DE TRABALHO, ASSISTÊNCIA E DESENVOLVIMENTO SOCIAL \n","FUNDO PARA A INFÂNCIA E A ADOLESCÊNCIA ",".",null,null,"Gestor Responsável ",null,null,null,null,null,"10901 - FUNDO ESTADUAL SOBRE DROGAS (UO EXTINTA)",".","16 - HABITAÇÃO","130 – Administração de Concessões","10901"," - ","FUNDO ESTADUAL SOBRE DROGAS (UO EXTINTA)"]
[40,"-",{"$f":"CONCATENATE(Tabela2[[#This Row],[Código do Programa]],Tabela2[[#This Row],[Colunas1]],Tabela2[[#This Row],[Nome do Programa2]])","v":"40-PROMOÇÃO, PROTEÇÃO E DEFESA DOS DIREITOS HUMANOS"},"PROMOÇÃO, PROTEÇÃO E DEFESA DOS DIREITOS HUMANOS","DESENVOLVIMENTO SOCIAL E DIREITOS HUMANOS","VÍTIMAS DE PRECONCEITO, DISCRIMINAÇÃO, INTOLERÂNCIA, DESRESPEITO, ABUSOS, MAUS TRATOS, NEGLIGÊNCIA, ABANDONO E AMEAÇADAS DE MORTE","PROMOVER, PROTEGER E EFETIVAR OS DIREITOS HUMANOS, BUSCANDO EQUACIONAR OS MAIS GRAVES PROBLEMAS QUE IMPOSSIBILITAM OU DIFICULTAM A PLENA REALIZAÇÃO DO EXERCÍCIO DE CIDADANIA E A GARANTIA DOS DIREITOS HUMANOS.","EM ANDAMENTO",48902,"48 -  SECRETARIA DE ESTADO DE DIREITOS HUMANOS \n","FUNDO ESTADUAL DE DEFESA DOS DIREITOS DA PESSOA IDOSA",".",null,null,null,null,null,null,null,null,"10904 - FUNDO ESTADUAL DE COMBATE A CORRUPÇÃO ",".","17 - SANEAMENTO","131 – Comunicação Social","10904"," - ","FUNDO ESTADUAL DE COMBATE A CORRUPÇÃO "]
[41,"-",{"$f":"CONCATENATE(Tabela2[[#This Row],[Código do Programa]],Tabela2[[#This Row],[Colunas1]],Tabela2[[#This Row],[Nome do Programa2]])","v":"41-GESTÃO LEGISLATIVA "},"GESTÃO LEGISLATIVA ","PODERES","SOCIEDADE EM GERAL, PARLAMENTARES E SERVIDORES DA ASSEMBLEIA LEGISLATIVA","REPRESENTAR A SOCIEDADE, LEGISLAR, APURAR FATOS DETERMINADOS, EXERCER A FISCALIZAÇÃO DOS ATOS DO PODER EXECUTIVO, DESEMPENHAR AS DEMAIS PRERROGATIVAS CONSTITUCIONAIS, LEGAIS E REGIMENTAIS DO ÓRGÃO, BEM COMO DIVULGAR OS TRABALHOS REALIZADOS POR ESSA INSTITUIÇÃO E INCENTIVAR A PARTICIPAÇÃO POPULAR.  ","EM ANDAMENTO",1101,"01 - ASSEMBLEIA LEGISLATIVA DO ESTADO DO ESPÍRITO SANTO","ASSEMBLEIA LEGISLATIVA DO ESTADO DO ESPÍRITO SANTO",".",null,null,null,null,null,null,null,null,"10905 - FUNDO SOBRE DROGAS",".","18 - GESTÃO AMBIENTAL","151 – Defesa Aérea","10905"," - ","FUNDO SOBRE DROGAS"]
[42,"-",{"$f":"CONCATENATE(Tabela2[[#This Row],[Código do Programa]],Tabela2[[#This Row],[Colunas1]],Tabela2[[#This Row],[Nome do Programa2]])","v":"42-DEFENSORIA PARA TODOS"},"DEFENSORIA PARA TODOS","PODERES","PESSOAS NECESSITADAS E VULNERÁVEIS","PROVER A FUNÇÃO JURISDICIONAL DO ESTADO ÀS PESSOAS NECESSITADAS E VULNERÁVEIS, INCUMBINDO-LHE, COMO EXPRESSÃO E INSTRUMENTO DO REGIME DEMOCRÁTICO, A ORIENTAÇÃO E A ASSISTÊNCIA JUDICIAL E EXTRAJUDICIAL, A PROMOÇÃO DOS DIREITOS HUMANOS E A DEFESA, EM TODOS OS GRAUS, DOS DIREITOS INDIVIDUAIS E COLETIVOS, DE FORMA INTEGRAL E GRATUITA.","EM ANDAMENTO",6101,"06 - DEFENSORIA PÚBLICA DO ESTADO DO ESPÍRITO SANTO","DEFENSORIA PÚBLICA DO ESTADO DO ESPÍRITO SANTO",".",null,null,null,null,null,null,null,null,"16101 - PROCURADORIA GERAL DO ESTADO",".","19 - CIÊNCIA E TECNOLOGIA","152 – Defesa Naval","16101"," - ","PROCURADORIA GERAL DO ESTADO"]
[43,"-",{"$f":"CONCATENATE(Tabela2[[#This Row],[Código do Programa]],Tabela2[[#This Row],[Colunas1]],Tabela2[[#This Row],[Nome do Programa2]])","v":"43-FOMENTO, DIFUSÃO CULTURAL E PRESERVAÇÃO DA MEMÓRIA "},"FOMENTO, DIFUSÃO CULTURAL E PRESERVAÇÃO DA MEMÓRIA ","CULTURA, TURISMO, ESPORTE E LAZER","SOCIEDADE EM GERAL","PROMOVER CONDIÇÕES DE ACESSO AOS BENS, SERVIÇOS E EQUIPAMENTOS CULTURAIS, ALÉM DE ASSEGURAR A PROTEÇÃO, VIGILÂNCIA, CONSERVAÇÃO, RESTAURAÇÃO, MANUTENÇÃO, GUARDA, GESTÃO DO PATRIMÔNIO CULTURAL E DOCUMENTAL, COMPREENDENDO OS BENS MATERIAIS, IMATERIAIS, NATURAIS E ACERVOS.","EM ANDAMENTO",40102,"40 - SECRETARIA DE ESTADO DA CULTURA","ARQUIVO PÚBLICO DO ESTADO DO ESPÍRITO SANTO",".",null,null,null,null,null,null,null,null,"16901 - FUNDO DE MODERNIZAÇÃO E INCENTIVO A COBRANÇA DA DÍVIDA ATIVA E DE REESTRUTURAÇÃO ADMINISTRATIVA DA PROCURADORIA GERAL DO ESTADO",".","20 - AGRICULTURA","153 – Defesa Terrestre","16901"," - ","FUNDO DE MODERNIZAÇÃO E INCENTIVO A COBRANÇA DA DÍVIDA ATIVA E DE REESTRUTURAÇÃO ADMINISTRATIVA DA PROCURADORIA GERAL DO ESTADO"]
[47,"-",{"$f":"CONCATENATE(Tabela2[[#This Row],[Código do Programa]],Tabela2[[#This Row],[Colunas1]],Tabela2[[#This Row],[Nome do Programa2]])","v":"47-NOVO SUS CAPIXABA"},"NOVO SUS CAPIXABA","SAÚDE INTEGRAL","USUÁRIOS DO SISTEMA ÚNICO DE SAÚDE","PERMITIR QUE OS SERVIÇOS DE SAÚDE PÚBLICA SEJAM PRESTADOS EM AMBIENTES DE ACESSO RESOLUTIVO E ACOLHEDORES AOS USUÁRIOS, REORIENTAR O MODELO DA ATENÇÃO E DE VIGILÂNCIA EM SAÚDE, TORNANDO A ATENÇÃO BÁSICA MAIS RESOLUTIVA E INTEGRADA COM A ATENÇÃO ESPECIALIZADA, MODERNIZAR E QUALIFICAR A RESOLUTIVIDADE CLÍNICA E A GESTÃO DOS SERVIÇOS DE SAÚDE,  INCORPORAR E DESENVOLVER NOVAS TECNOLOGIAS E PRÁTICAS DE FORMAÇÃO PROFISSIONAL, DE INOVAÇÃO DE AMBIENTES PRODUTIVOS EM SAÚDE E DE PESQUISA APLICADA AO SUS.","EM ANDAMENTO",44901,"44 - SECRETARIA DE ESTADO DA SAÚDE","FUNDO ESTADUAL DE SAÚDE",".",null,null,null,null,null,null,null,null,"18101 - DEFENSORIA PÚBLICA (UO EXTINTA)",".","21 - ORGANIZAÇÃO AGRÁRIA","181 – Policiamento","18101"," - ","DEFENSORIA PÚBLICA (UO EXTINTA)"]
[48,"-",{"$f":"CONCATENATE(Tabela2[[#This Row],[Código do Programa]],Tabela2[[#This Row],[Colunas1]],Tabela2[[#This Row],[Nome do Programa2]])","v":"48-DESENVOLVIMENTO E ADMINISTRAÇÃO INSTITUCIONAL "},"DESENVOLVIMENTO E ADMINISTRAÇÃO INSTITUCIONAL ","PODERES","MEMBROS E SERVIDORES DO MPES","PROVER SUPORTE OPERACIONAL E INFRAESTRUTURA À ATUAÇÃO FINALÍSTICA E ADMINISTRATIVA DO MINISTÉRIO PÚBLICO DO ESTADO DO ESPÍRITO SANTO.","EM ANDAMENTO",5101,"05 - MINISTÉRIO PÚBLICO DO ESTADO DO ESPÍRITO SANTO \n","MINISTÉRIO PÚBLICO DO ESTADO DO ESPÍRITO SANTO",".",null,null,null,null,null,null,null,null,"18901 - FUNDO DE APARELHAMENTO DA DEFENSORIA PÚBLICA (UO EXTINTA)",".","22 - INDÚSTRIA","182 – Defesa Civil","18901"," - ","FUNDO DE APARELHAMENTO DA DEFENSORIA PÚBLICA (UO EXTINTA)"]
[49,"-",{"$f":"CONCATENATE(Tabela2[[#This Row],[Código do Programa]],Tabela2[[#This Row],[Colunas1]],Tabela2[[#This Row],[Nome do Programa2]])","v":"49-GESTÃO DA COMUNICAÇÃO E DA INFORMAÇÃO"},"GESTÃO DA COMUNICAÇÃO E DA INFORMAÇÃO","GESTÃO PÚBLICA INOVADORA","SOCIEDADE E ÓRGÃOS DA ADMINISTRAÇÃO PÚBLICA","DAR PUBLICIDADE ÀS AÇÕES DO GOVERNO, PRODUÇÃO DE NOTÍCIAS, DIVULGAÇÃO DE ATOS OFICIAIS POR PARTE DOS ÓRGÃOS DO ESTADO E TERCEIROS, PROMOVER AÇÕES DE MARKETING E DIFUNDIR CONTEÚDOS DE INTERESSE PÚBLICO.","EM ANDAMENTO",10201,"10 - GOVERNADORIA DO ESTADO \n","RÁDIO E TELEVISÃO ESPÍRITO SANTO",".",null,null,null,null,null,null,null,null,"19101 - GABINETE DO VICE-GOVERNADOR",".","23 - COMÉRCIO E SERVIÇOS","183 – Informação e Inteligência","19101"," - ","GABINETE DO VICE-GOVERNADOR"]
[50,"-",{"$f":"CONCATENATE(Tabela2[[#This Row],[Código do Programa]],Tabela2[[#This Row],[Colunas1]],Tabela2[[#This Row],[Nome do Programa2]])","v":"50-GESTÃO PÚBLICA INOVADORA COM RESPONSABILIDADE FISCAL"},"GESTÃO PÚBLICA INOVADORA COM RESPONSABILIDADE FISCAL","GESTÃO PÚBLICA INOVADORA","ÓRGÃOS DA ADMINISTRAÇÃO PÚBLICA","PROMOVER E EXECUTAR POLITICAS PÚBLICAS POR MEIO DE UMA GESTÃO INOVADORA, INTEGRADA ÀS NECESSIDADES DA SOCIEDADE, ORIENTADA PARA RESULTADOS E INTENSIVA NO USO DAS NOVAS TECNOLOGIAS DE COMUNICAÇÃO E INFORMAÇÃO, PRESERVANDO O COMPROMISSO COM A RESPONSABILIDADE FISCAL E COM A EFICIÊNCIA DO GASTO PÚBLICO.","EM ANDAMENTO",28101,"22 - SECRETARIA DE ESTADO DA FAZENDA \n","SECRETARIA DE ESTADO DE GESTÃO E RECURSOS HUMANOS",".",null,null,null,null,null,null,null,null,"19901 - FUNDO ESTADUAL SOBRE DROGAS (UO EXTINTA)",".","24 - COMUNICAÇÕES","211 – Relações Diplomáticas","19901"," - ","FUNDO ESTADUAL SOBRE DROGAS (UO EXTINTA)"]
[51,"-",{"$f":"CONCATENATE(Tabela2[[#This Row],[Código do Programa]],Tabela2[[#This Row],[Colunas1]],Tabela2[[#This Row],[Nome do Programa2]])","v":"51-QUALIFICAR ES"},"QUALIFICAR ES","EDUCAÇÃO PARA O FUTURO","JOVENS E ADULTOS EM PROCESSO DE QUALIFICAÇÃO E REQUALIFICAÇÃO","INCENTIVAR A QUALIDADE DA FORMAÇÃO PROFISSIONAL VOLTADA PARA O DESENVOLVIMENTODAS VOCAÇÕES ECONÔMICAS E SOCIAIS.","EM ANDAMENTO",32901,"32 - SECRETARIA DE ESTADO DA CIÊNCIA, TECNOLOGIA, INOVAÇÃO, EDUCAÇÃO PROFISSIONAL E DESENVOLVIMENTO ECONONÔMICO","FUNDO ESTADUAL DE CIÊNCIA E TECNOLOGIA",".",null,null,null,null,null,null,null,null,"22101 - SECRETARIA DE ESTADO DA FAZENDA",".","25 - ENERGIA","212 – Cooperação Internacional","22101"," - ","SECRETARIA DE ESTADO DA FAZENDA"]
[53,"-",{"$f":"CONCATENATE(Tabela2[[#This Row],[Código do Programa]],Tabela2[[#This Row],[Colunas1]],Tabela2[[#This Row],[Nome do Programa2]])","v":"53-MELHORIA DO SISTEMA DE JUSTIÇA"},"MELHORIA DO SISTEMA DE JUSTIÇA","SEGURANÇA EM DEFESA DA VIDA","POPULAÇÃO CARCERÁRIA","MELHORAR A EFICIÊNCIA DO SISTEMA DE JUSTIÇA, PROPORCIONANDO ASSISTÊNCIA BÁSICA E ESPECIALIZADA PARA REINSERÇÃO SOCIAL DOS PRESOS SOB A CUSTÓDIA DA SECRETARIA DE JUSTIÇA.","EM ANDAMENTO",46903,"46 - SECRETARIA DE ESTADO DA JUSTIÇA \n","FUNDO PENITENCIÁRIO ESTADUAL",".",null,null,null,null,null,null,null,null,"22202 - JUNTA COMERCIAL DO ESTADO DO ESPÍRITO SANTO",".","26 - TRANSPORTE","241 – Assistência ao Idoso","22202"," - ","JUNTA COMERCIAL DO ESTADO DO ESPÍRITO SANTO"]
[54,"-",{"$f":"CONCATENATE(Tabela2[[#This Row],[Código do Programa]],Tabela2[[#This Row],[Colunas1]],Tabela2[[#This Row],[Nome do Programa2]])","v":"54-GESTÃO INTEGRADA DE SANEAMENTO, HABITAÇÃO E DESENVOLVIMENTO URBANO"},"GESTÃO INTEGRADA DE SANEAMENTO, HABITAÇÃO E DESENVOLVIMENTO URBANO","INFRAESTRUTURA PARA CRESCER","POPULAÇÃO EM GERAL","BUSCAR SOLUÇÕES URGENTES EM RESPOSTA AO CRESCENTE AUMENTO DA CONCENTRAÇÃO HUMANA NOS CENTROS URBANOS, TRATANDO DIVERSOS COMPONENTES PARA APOIAR A IMPLANTAÇÃO DE CIDADES SAUDÁVEIS, QUE VISAM MELHORAR A VIDA DOS CIDADÃOS QUE NELAS HABITAM: INFRAESTRUTURA URBANA COMPLETA, GESTÃO E POLÍTICA HABITACIONAL RURAL E URBANA, SANEAMENTO BÁSICO, MANEJO E SUSTENTABILIDADE DAS ÁGUAS, ENFRENTAMENTO A RISCOS FRENTE A DESMORONAMENTOS E ENCHENTES, BEM COMO REALIZAR GESTÃO E EXECUÇÃO DE POLÍTICAS PÚBICAS.","EM ANDAMENTO",36901,"36 - SECRETARIA DE ESTADO DE SANEAMENTO, HABITAÇÃO E DESENVOLVIMENTO URBANO","FUNDO ESTADUAL DE HABITAÇÃO DE INTERESSE SOCIAL",".",null,null,null,null,null,null,null,null,"22204 - BANCO DO ESTADO DO ESPÍRITO SANTO S/A",".","27 - DESPORTO E LAZER","242 – Assistência ao Portador de Deficiência","22204"," - ","BANCO DO ESTADO DO ESPÍRITO SANTO S/A"]
[56,"-",{"$f":"CONCATENATE(Tabela2[[#This Row],[Código do Programa]],Tabela2[[#This Row],[Colunas1]],Tabela2[[#This Row],[Nome do Programa2]])","v":"56-DESENVOLVIMENTO DA LOGÍSTICA E DA INFRAESTRUTURA"},"DESENVOLVIMENTO DA LOGÍSTICA E DA INFRAESTRUTURA","INFRAESTRUTURA PARA CRESCER","SOCIEDADE EM GERAL","DOTAR O ESPÍRITO SANTO DE INFRAESTRUTURA DE TRANSPORTES DIVERSIFICADA E ADEQUADA AO DESENVOLVIMENTO ECONÔMICO E SOCIAL,  DE FORMA  A PROPORCIONAR MAIOR COMPETITIVIDADE LOGÍSTICA, MAIOR DINAMISMO ECONÔMICO, DESENVOLVIMENTO E INTEGRAÇÃO DAS DIVERSAS REGIÕES DO ESTADO, BEM COMO PROMOVER  INFRAESTRUTURA FÍSICA ADEQUADA PARA UMA EFICIENTE PRESTAÇÃO DE SERVIÇOS PÚBLICOS À SOCIEDADE.","EM ANDAMENTO",35901,"35 - SECRETARIA DE ESTADO DE MOBILIDADE E INFRAESTRUTURA \n","FUNDO ESPECIAL PARA CONSTRUÇÃO, REFORMA E AMPLIAÇÃO DE EQUIPAMENTOS PÚBLICOS ESTADUAIS ",".",null,null,null,null,null,null,null,null,"22901 - FUNDO DE MODERNIZAÇÃO E DESENVOLVIMENTO FAZENDÁRIO",".","28 - ENCARGOS ESPECIAIS","243 – Assistência à Criança e ao Adolescente","22901"," - ","FUNDO DE MODERNIZAÇÃO E DESENVOLVIMENTO FAZENDÁRIO"]
[59,"-",{"$f":"CONCATENATE(Tabela2[[#This Row],[Código do Programa]],Tabela2[[#This Row],[Colunas1]],Tabela2[[#This Row],[Nome do Programa2]])","v":"59-ENFRENTAMENTO A RISCOS E RESPOSTAS A DESASTRES"},"ENFRENTAMENTO A RISCOS E RESPOSTAS A DESASTRES","SEGURANÇA EM DEFESA DA VIDA","SOCIEDADE EM GERAL","AMPLIAR A PROTEÇÃO E A ATUAÇÃO PÚBLICA, DE FORMA INTEGRADA, NA PREVENÇÃO A RISCOS E NA RESPOSTA IMEDIATA ÀS VÍTIMAS DE DESASTRES, ACIDENTES E SINISTROS.","EM ANDAMENTO",45104,"45 - SECRETARIA DE ESTADO DA SEGURANCA PÚBLICA E DEFESA SOCIAL \n","CORPO DE BOMBEIROS MILITAR DO ESTADO DO ESPÍRITO SANTO",".",null,null,null,null,null,null,null,null,"22902 - FUNDO SOBERANO DO ESTADO DO ESPÍRITO SANTO",".","99 - RESERVA DE CONTINGÊNCIA","244 – Assistência Comunitária","22902"," - ","FUNDO SOBERANO DO ESTADO DO ESPÍRITO SANTO"]
[60,"-",{"$f":"CONCATENATE(Tabela2[[#This Row],[Código do Programa]],Tabela2[[#This Row],[Colunas1]],Tabela2[[#This Row],[Nome do Programa2]])","v":"60-CONCESSÕES E PARCERIAS ES"},"CONCESSÕES E PARCERIAS ES","DESENVOLVIMENTO ECONÔMICO","ADMINISTRAÇÃO PÚBLICA ESTADUAL","PROMOVER, FOMENTAR, COORDENAR, DISCIPLINAR, REGULAR E FISCALIZAR PARCERIAS PÚBLICO-PRIVADAS E CONCESSÕES NO ÂMBITO DO GOVERNO DO ESTADO, TENDO EM VISTA A EXPANSÃO DA INFRAESTRUTURA PÚBLICA, A QUALIDADE DOS SERVIÇOS PRESTADOS E RAZOABILIDADE DAS TARIFAS COBRADAS.","EM ANDAMENTO",30207,"22 - SECRETARIA DE ESTADO DA FAZENDA \n","AGÊNCIA DE REGULAÇÃO DE SERVIÇOS PÚBLICOS",".",null,null,null,null,null,null,null,null,"22903 - FUNDO RECONSTRUÇÃO ES",null,null,null,"22903"," - ","FUNDO RECONSTRUÇÃO ES"]
[68,"-",{"$f":"CONCATENATE(Tabela2[[#This Row],[Código do Programa]],Tabela2[[#This Row],[Colunas1]],Tabela2[[#This Row],[Nome do Programa2]])","v":"68-DEFESA DO CONSUMIDOR"},"DEFESA DO CONSUMIDOR","SEGURANÇA EM DEFESA DA VIDA","CONSUMIDOR","PROMOVER E DESENVOLVER A POLÍTICA DE PROTEÇÃO E DEFESA DOS CONSUMIDORES, BASEADA NA CONSCIENTIZAÇÃO DE DIREITOS, NA EDUCAÇÃO PARA O CONSUMO CONSCIENTE E SUSTENTÁVEL, E NA ATIVIDADE DE FISCALIZAÇÃO METROLÓGICA, VISANDO GARANTIR A HARMONIZAÇÃO E A TRANSPARÊNCIA NAS RELAÇÕES DE CONSUMO.","EM ANDAMENTO",30203,"46 - SECRETARIA DE ESTADO DA JUSTIÇA \n","INSTITUTO DE PESOS E MEDIDAS DO ESTADO DO ESPÍRITO SANTO",".",null,null,null,null,null,null,null,null,"22904 - FUNDO DE PROTEÇÃO AO EMPREGO",".",null,"271 – Previdência Básica","22904"," - ","FUNDO DE PROTEÇÃO AO EMPREGO"]
[113,"-",{"$f":"CONCATENATE(Tabela2[[#This Row],[Código do Programa]],Tabela2[[#This Row],[Colunas1]],Tabela2[[#This Row],[Nome do Programa2]])","v":"113-TURISMO SUSTENTÁVEL"},"TURISMO SUSTENTÁVEL","CULTURA, TURISMO, ESPORTE E LAZER","TURISTAS, VISITANTES E POPULAÇÃO RESIDENTE DOS DESTINOS TURÍSTICOS DO ESTADO","FOMENTAR A ATIVIDADE TURÍSTICA DE MANEIRA SUSTENTÁVEL E MELHORAR A COMPETITIVIDADE DOS ARRANJOS PRODUTIVOS LOCAIS DO TURISMO, POR MEIO DA REVITALIZAÇÃO DE CENTROS TURÍSTICOS, MELHORIA DA INFRAESTRUTURA, CRIAÇÃO DE CENTROS DE EVENTOS, CONSOLIDAÇÃO DE ROTAS TURÍSTICAS, QUALIFICAÇÃO EMPRESARIAL E DOS TRABALHADORES E MELHORIA DA GOVERNANÇA.","EM ANDAMENTO",37901,"37 - SECRETARIA DE ESTADO DO TURISMO","FUNDO DE FOMENTO DO TURISMO",".",null,null,null,null,null,null,null,null,"22905 - FUNDO DE APOIO RURAL",".",null,"272 – Previdência do Regime Estatutário","22905"," - ","FUNDO DE APOIO RURAL"]
[152,"-",{"$f":"CONCATENATE(Tabela2[[#This Row],[Código do Programa]],Tabela2[[#This Row],[Colunas1]],Tabela2[[#This Row],[Nome do Programa2]])","v":"152-EDUCAÇÃO MUSICAL"},"EDUCAÇÃO MUSICAL","EDUCAÇÃO PARA O FUTURO","SOCIEDADE EM GERAL","ELEVAR A QUALIDADE DO ENSINO DE MÚSICA, FORMAR PROFISSIONAIS E EDUCADORES MUSICAIS, FOMENTAR PESQUISA E EXTENSÃO NA ÁREA DA MÚSICA, REALIZAR EVENTOS ACADÊMICOS, CULTURAIS E PROMOVER PROJETOS EDUCATIVOS DE CUNHO SOCIAL.","EM ANDAMENTO",42201,"42 -  SECRETARIA DE ESTADO DA EDUCAÇÃO \n","FACULDADE DE MÚSICA DO ESPÍRITO SANTO",".",null,null,null,null,null,null,null,null,"27101 - SECRETARIA DE ESTADO DE ECONOMIA E PLANEJAMENTO",".",null,"273 – Previdência Complementar","27101"," - ","SECRETARIA DE ESTADO DE ECONOMIA E PLANEJAMENTO"]
[159,"-",{"$f":"CONCATENATE(Tabela2[[#This Row],[Código do Programa]],Tabela2[[#This Row],[Colunas1]],Tabela2[[#This Row],[Nome do Programa2]])","v":"159-DESENVOLVIMENTO DA PRÁTICA ESPORTIVA"},"DESENVOLVIMENTO DA PRÁTICA ESPORTIVA","CULTURA, TURISMO, ESPORTE E LAZER","ORGANIZAÇÕES, FEDERAÇÕES, GRUPOS SOCIAIS E COMUNITÁRIOS, PARATLETAS ESTUDANTES, DESPORTISTAS EM GERAL E PROFISSIONAIS DA ÁREA ESPORTIVA","CONTRIBUIR PARA O DESENVOLVIMENTO DO ESPORTE E LAZER EM TODOS OS SEUS SEGMENTOS, MODALIDADES, FORMAS E ABRANGÊNCIA, VISANDO SUA EXPANSÃO E DIFUSÃO CONSIDERANDO, EM ESPECIAL, OS ASPECTOS EDUCACIONAL, SÓCIO-CULTURAL, DE SAÚDE E RENDIMENTO.","EM ANDAMENTO",39101,"39 - SECRETARIA DE ESTADO DE ESPORTES E LAZER","SECRETARIA DE ESTADO DE ESPORTES E LAZER",".",null,null,null,null,null,null,null,null,"27201 - INSTITUTO JONES DOS SANTOS NEVES",".",null,"274 – Previdência Especial","27201"," - ","INSTITUTO JONES DOS SANTOS NEVES"]
[189,"-",{"$f":"CONCATENATE(Tabela2[[#This Row],[Código do Programa]],Tabela2[[#This Row],[Colunas1]],Tabela2[[#This Row],[Nome do Programa2]])","v":"189-FORTALECIMENTO DO CONTROLE INTERNO E PROMOÇÃO DA TRANSPARÊNCIA E DA PARTICIPAÇÃO SOCIAL"},"FORTALECIMENTO DO CONTROLE INTERNO E PROMOÇÃO DA TRANSPARÊNCIA E DA PARTICIPAÇÃO SOCIAL","GESTÃO PÚBLICA INOVADORA","CIDADÃOS CAPIXABAS, GESTORES E AGENTES PÚBLICOS ESTADUAIS","REALIZAR O CONTROLE INTERNO E EXPANDIR A CAPACIDADE DO CIDADÃO DE ACOMPANHAR E PARTICIPAR DAS AÇÕES GOVERNAMENTAIS, MEDIANTE A ELEVAÇÃO DOS INSTRUMENTOS DE TRANSPARÊNCIA PÚBLICA E ABERTURA E FORTALECIMENTO DE CANAIS DE COMUNICAÇÃO ENTRE A ADMINISTRAÇÃO PÚBLICA ESTADUAL E A SOCIEDADE.","EM ANDAMENTO",10103,"10 - GOVERNADORIA DO ESTADO \n","SECRETARIA DE ESTADO DE CONTROLE E TRANSPARÊNCIA",".",null,null,null,null,null,null,null,null,"27901 - FUNDO METROPOLITANO DE DESENVOLVIMENTO DA GRANDE VITÓRIA",".",null,"301 – Atenção Básica","27901"," - ","FUNDO METROPOLITANO DE DESENVOLVIMENTO DA GRANDE VITÓRIA"]
[191,"-",{"$f":"CONCATENATE(Tabela2[[#This Row],[Código do Programa]],Tabela2[[#This Row],[Colunas1]],Tabela2[[#This Row],[Nome do Programa2]])","v":"191-FORTALECIMENTO DO SISTEMA ÚNICO DE ASSISTÊNCIA SOCIAL"},"FORTALECIMENTO DO SISTEMA ÚNICO DE ASSISTÊNCIA SOCIAL","DESENVOLVIMENTO SOCIAL E DIREITOS HUMANOS","FAMÍLIAS EM SITUAÇÃO DE VULNERABILIDADE SOCIAL","AMPLIAR A COBERTURA DO SISTEMA ÚNICO DE ASSISTÊNCIA SOCIAL PARA MELHOR ATENDER ÀS DEMANDAS SOCIOASSISTENCIAIS.","EM ANDAMENTO",47901,"47 - SECRETARIA DE ESTADO DE TRABALHO, ASSISTÊNCIA E DESENVOLVIMENTO SOCIAL \n","FUNDO ESTADUAL DE ASSISTÊNCIA SOCIAL",".",null,null,null,null,null,null,null,null,"27902 - FUNDO ESTADUAL DE APOIO AO DESENVOLVIMENTO MUNICIPAL",".",null,"302 – Assistência Hospitalar e Ambulatorial ","27902"," - ","FUNDO ESTADUAL DE APOIO AO DESENVOLVIMENTO MUNICIPAL"]
[205,"-",{"$f":"CONCATENATE(Tabela2[[#This Row],[Código do Programa]],Tabela2[[#This Row],[Colunas1]],Tabela2[[#This Row],[Nome do Programa2]])","v":"205-CONTROLE, PRESERVAÇÃO E CONSERVAÇÃO DA BIODIVERSIDADE E DOS RECURSOS NATURAIS"},"CONTROLE, PRESERVAÇÃO E CONSERVAÇÃO DA BIODIVERSIDADE E DOS RECURSOS NATURAIS","AGRICULTURA E MEIO AMBIENTE","SOCIEDADE EM GERAL","AÇÕES INTEGRADAS DE FISCALIZAÇÃO, CONTROLE AMBIENTAL E GESTÃO DA BIODIVERSIDADE E DOS RECURSOS NATURAIS, CONSIDERANDO OS DIFERENTES ASPECTOS INERENTES À SUA CONSERVAÇÃO, RECUPERAÇÃO E MANUTENÇÃO.","EM ANDAMENTO",41201,"41 - SECRETARIA DE ESTADO DE MEIO AMBIENTE E RECURSOS HÍDRICOS \n","INSTITUTO ESTADUAL DE MEIO AMBIENTE E RECURSOS HÍDRICOS",".",null,null,null,null,null,null,null,null,"28101 - SECRETARIA DE ESTADO DE GESTÃO E RECURSOS HUMANOS",".",null,"303 – Suporte Profilático e Terapêutico","28101"," - ","SECRETARIA DE ESTADO DE GESTÃO E RECURSOS HUMANOS"]
[540,"-",{"$f":"CONCATENATE(Tabela2[[#This Row],[Código do Programa]],Tabela2[[#This Row],[Colunas1]],Tabela2[[#This Row],[Nome do Programa2]])","v":"540-CONTROLE EXTERNO DA GESTÃO DE RECURSOS PÚBLICOS"},"CONTROLE EXTERNO DA GESTÃO DE RECURSOS PÚBLICOS","PODERES","ÓRGÃOS E ENTIDADES DA ADMINISTRAÇÃO DIRETA E INDIRETA DOS PODERES CONSTITUÍDOS DO ESTADO E DOS MUNICÍPIOS DO ESTADO DO ESPÍRITO SANTO","GERAR BENEFÍCIOS PARA A SOCIEDADE POR MEIO DO CONTROLE EXTERNO E DO APERFEIÇOAMENTO DA GESTÃO DOS RECURSOS PÚBLICOS.","EM ANDAMENTO",2101,"02 - TRIBUNAL DE CONTAS DO ESTADO DO ESPÍRITO SANTO \n","TRIBUNAL DE CONTAS DO ESTADO DO ESPÍRITO SANTO",".",null,null,null,null,null,null,null,null,"28201 - ESCOLA DE SERVIÇO PÚBLICO DO ESPÍRITO SANTO",".",null,"304 – Vigilância Sanitária","28201"," - ","ESCOLA DE SERVIÇO PÚBLICO DO ESPÍRITO SANTO"]
[561,"-",{"$f":"CONCATENATE(Tabela2[[#This Row],[Código do Programa]],Tabela2[[#This Row],[Colunas1]],Tabela2[[#This Row],[Nome do Programa2]])","v":"561-ESTADO PRESENTE EM DEFESA DA VIDA"},"ESTADO PRESENTE EM DEFESA DA VIDA","SEGURANÇA EM DEFESA DA VIDA","SOCIEDADE EM GERAL","ARTICULAR UM CONJUNTO DE AÇÕES DE CURTO, MÉDIO E LONGO PRAZO, PRIORITARIAMENTE EM REGIÕES DE ALTA VULNERABILIDADE SOCIAL, ALINHANDO PROJETOS DE COMBATE À CRIMINALIDADE COM POLÍTICAS PÚBLICAS INCLUSIVAS, VISANDO REDUZIR OS ÍNDICES DE VIOLÊNCIA E AS DESIGUALDADES SOCIAIS.","EM ANDAMENTO",45102,"45 - SECRETARIA DE ESTADO DA SEGURANCA PÚBLICA E DEFESA SOCIAL \n","POLICIA CIVIL DO ESTADO DO ESPÍRITO SANTO",".",null,null,null,null,null,null,null,null,"28202 - DEPARTAMENTO DE IMPRENSA OFICIAL",".",null,"305 – Vigilância Epidemiológica","28202"," - ","DEPARTAMENTO DE IMPRENSA OFICIAL"]
[562,"-",{"$f":"CONCATENATE(Tabela2[[#This Row],[Código do Programa]],Tabela2[[#This Row],[Colunas1]],Tabela2[[#This Row],[Nome do Programa2]])","v":"562-ESTUDOS, PESQUISAS E INFORMAÇÕES PARA O DESENVOLVIMENTO DE POLÍTICAS PÚBLICAS"},"ESTUDOS, PESQUISAS E INFORMAÇÕES PARA O DESENVOLVIMENTO DE POLÍTICAS PÚBLICAS","GESTÃO PÚBLICA INOVADORA","GESTORES PÚBLICOS E SOCIEDADE INTERESSADA NO USO DE ESTUDOS, PESQUISAS E DADOS ESTATÍSTICOS","PROVER GESTORES PÚBLICOS E SOCIEDADE DE SUBSÍDIOS PARA A TOMADA DE DECISÃO COM A PRODUÇÃO DE ESTUDOS E PESQUISAS NAS ÁREAS DE POLÍTICAS PÚBLICAS APLICADAS, MACROECONOMIA, SETORIAIS E TERRITORIAIS.","EM ANDAMENTO",27201,"27 - SECRETARIA DE ESTADO DE ECONOMIA E PLANEJAMENTO \n","INSTITUTO JONES DOS SANTOS NEVES",".",null,null,null,null,null,null,null,null,"28203 - INSTITUTO DE TECNOLOGIA DA INFORMAÇÃO E COMUNICAÇÃO DO ESTADO DO ESPÍRITO SANTO",".",null,"306 – Alimentação e Nutrição","28203"," - ","INSTITUTO DE TECNOLOGIA DA INFORMAÇÃO E COMUNICAÇÃO DO ESTADO DO ESPÍRITO SANTO"]
[599,"-",{"$f":"CONCATENATE(Tabela2[[#This Row],[Código do Programa]],Tabela2[[#This Row],[Colunas1]],Tabela2[[#This Row],[Nome do Programa2]])","v":"599-AÇÕES INTEGRADAS DE TRATAMENTO E CUIDADO AOS USUÁRIOS DE DROGAS"},"AÇÕES INTEGRADAS DE TRATAMENTO E CUIDADO AOS USUÁRIOS DE DROGAS","DESENVOLVIMENTO SOCIAL E DIREITOS HUMANOS","POPULAÇÃO EM SITUAÇÃO DE RISCO","PROMOVER A INSTRUMENTALIZAÇÃO DE MEIOS DE COMBATE AO USO ABUSIVO DE DROGAS EM ARTICULAÇÃO COM ORGANIZAÇÕES GOVERNAMENTAIS E NÃO GOVERNAMENTAIS.","EM ANDAMENTO",48903,"48 - SECRETARIA DE ESTADO DE DIREITOS HUMANOS","FUNDO ESTADUAL SOBRE DROGAS",".",null,null,null,null,null,null,null,null,"30101 - SECRETARIA DE ESTADO DE DESENVOLVIMENTO",".",null,"331 – Proteção e Benefícios ao Trabalhador","30101"," - ","SECRETARIA DE ESTADO DE DESENVOLVIMENTO"]
[740,"-",{"$f":"CONCATENATE(Tabela2[[#This Row],[Código do Programa]],Tabela2[[#This Row],[Colunas1]],Tabela2[[#This Row],[Nome do Programa2]])","v":"740-REPRESENTAÇÃO JUDICIAL E EXTRAJUDICIAL DO ESTADO"},"REPRESENTAÇÃO JUDICIAL E EXTRAJUDICIAL DO ESTADO","PODERES","ÓRGÃOS PÚBLICOS ESTADUAIS","DEFENDER OS INTERESSES DO ESTADO EM JUÍZO E ASSESSORAR TODOS OS ÓRGÃOS DA ADMINISTRAÇÃO DIRETA E INDIRETA.","EM ANDAMENTO",16901,"16 - PROCURADORIA GERAL DO ESTADO \n","FUNDO DE MODERNIZAÇÃO E INCENTIVO A COBRANÇA DA DÍVIDA ATIVA E DE REESTRUTURAÇÃO ADMINISTRATIVA DA PROCURADORIA GERAL DO ESTADO",".",null,null,null,null,null,null,null,null,"30201 - SUPERINTENDÊNCIA DOS PROJETOS DE POLARIZAÇÃO INDUSTRIAL (UO EXTINTA)",".",null,"332 – Relações de Trabalho","30201"," - ","SUPERINTENDÊNCIA DOS PROJETOS DE POLARIZAÇÃO INDUSTRIAL (UO EXTINTA)"]
[800,"-",{"$f":"CONCATENATE(Tabela2[[#This Row],[Código do Programa]],Tabela2[[#This Row],[Colunas1]],Tabela2[[#This Row],[Nome do Programa2]])","v":"800-APOIO ADMINISTRATIVO"},"APOIO ADMINISTRATIVO","GESTÃO PÚBLICA INOVADORA","ÓRGÃOS PÚBLICOS ESTADUAIS DAS ADMINISTRAÇÕES DIRETA E INDIRETA DO PODER EXECUTIVO","PROMOVER AÇÕES DE APOIO GOVERNAMENTAL, NO ÂMBITO DO PODER EXECUTIVO.","EM ANDAMENTO",32101,"28 -  SECRETARIA DE ESTADO DE GESTÃO E RECURSOS HUMANOS \n","SECRETARIA DE ESTADO DE CIÊNCIA, TECNOLOGIA, INOVAÇÃO E EDUCAÇÃO PROFISSIONAL",".",null,null,null,null,null,null,null,null,"30203 - INSTITUTO DE PESOS E MEDIDAS DO ESTADO DO ESPÍRITO SANTO",".",null,"333 – Empregabilidade","30203"," - ","INSTITUTO DE PESOS E MEDIDAS DO ESTADO DO ESPÍRITO SANTO"]
[859,"-",{"$f":"CONCATENATE(Tabela2[[#This Row],[Código do Programa]],Tabela2[[#This Row],[Colunas1]],Tabela2[[#This Row],[Nome do Programa2]])","v":"859-MOBILIDADE URBANA"},"MOBILIDADE URBANA","INFRAESTRUTURA PARA CRESCER","USUÁRIOS DOS DIFERENTES MODAIS DE TRANSPORTE DO ESTADO","PROPORCIONAR MAIOR FLUIDEZ E MELHORAR A CIRCULAÇÃO NAS VIAS URBANAS, DE MODO A REDUZIR O TEMPO MÉDIO DE DESLOCAMENTO NAS CIDADES, PRIORIZANDO O USO DE UM SISTEMA DE TRANSPORTE PÚBLICO DE PASSAGEIROS INOVADOR, ACESSÍVEL, SOCIALMENTE INCLUSIVO, SEGURO E DE QUALIDADE.","EM ANDAMENTO",35201,"35 - SECRETARIA DE ESTADO DE MOBILIDADE E INFRAESTRUTURA","DEPARTAMENTO DE EDIFICAÇÕES E DE RODOVIAS DO ESTADO DO ESPÍRITO SANTO",".",null,null,null,null,null,null,null,null,"30204 - AGÊNCIA DE SERVIÇOS PÚBLICOS DE ENERGIA DO ESTADO DO ESPÍRITO SANTO (UO EXTINTA)",".",null,"334 – Fomento ao Trabalho","30204"," - ","AGÊNCIA DE SERVIÇOS PÚBLICOS DE ENERGIA DO ESTADO DO ESPÍRITO SANTO (UO EXTINTA)"]
[901,"-",{"$f":"CONCATENATE(Tabela2[[#This Row],[Código do Programa]],Tabela2[[#This Row],[Colunas1]],Tabela2[[#This Row],[Nome do Programa2]])","v":"901-OPERAÇÕES ESPECIAIS: CUMPRIMENTO DE SENTENÇAS JUDICIAIS"},"OPERAÇÕES ESPECIAIS: CUMPRIMENTO DE SENTENÇAS JUDICIAIS","PODERES","CREDORES DE PAGAMENTOS DE DÉBITOS DEVIDOS PELA FAZENDA PÚBLICA ESTADUAL","CUMPRIR SENTENÇAS JUDICIAIS.","EM ANDAMENTO",32202,"80 - ENCARGOS GERAIS DO ESTADO","FUNDAÇÃO DE AMPARO A PESQUISA E INOVAÇÃO DO ESPÍRITO SANTO",".",null,null,null,null,null,null,null,null,"30205 - AGÊNCIA DE DESENVOLVIMENTO DAS MICRO E PEQUENAS EMPRESAS E DO EMPREENDEDORISMO",".",null,"361 – Ensino Fundamental","30205"," - ","AGÊNCIA DE DESENVOLVIMENTO DAS MICRO E PEQUENAS EMPRESAS E DO EMPREENDEDORISMO"]
[903,"-",{"$f":"CONCATENATE(Tabela2[[#This Row],[Código do Programa]],Tabela2[[#This Row],[Colunas1]],Tabela2[[#This Row],[Nome do Programa2]])","v":"903-OPERAÇÕES ESPECIAIS: OUTRAS TRANSFERÊNCIAS"},"OPERAÇÕES ESPECIAIS: OUTRAS TRANSFERÊNCIAS","PODERES","GOVERNO DO ESTADO","CUMPRIR OUTRAS TRANSFERÊNCIAS.","EM ANDAMENTO",80102,"80 - ENCARGOS GERAIS DO ESTADO","ADMINISTRAÇÃO GERAL A CARGO DA SECRETARIA DE ESTADO DA FAZENDA",".",null,null,null,null,null,null,null,null,"30206 - BANCO DE DESENVOLVIMENTO DO ESPÍRITO SANTO S/A",".",null,"362 – Ensino Médio","30206"," - ","BANCO DE DESENVOLVIMENTO DO ESPÍRITO SANTO S/A"]
[904,"-",{"$f":"CONCATENATE(Tabela2[[#This Row],[Código do Programa]],Tabela2[[#This Row],[Colunas1]],Tabela2[[#This Row],[Nome do Programa2]])","v":"904-OPERAÇÕES ESPECIAIS: DÍVIDA INTERNA"},"OPERAÇÕES ESPECIAIS: DÍVIDA INTERNA","PODERES","GOVERNO DO ESTADO","CUMPRIR COMPROMISSOS DA DÍVIDA INTERNA.","EM ANDAMENTO",60201,"80 - ENCARGOS GERAIS DO ESTADO","INSTITUTO DE PREVIDÊNCIA DOS SERVIDORES DO ESTADO DO ESPÍRITO SANTO",".",null,null,null,null,null,null,null,null,"30207 - AGÊNCIA DE REGULAÇÃO DE SERVIÇOS PÚBLICOS",".",null,"363 – Ensino Profissional","30207"," - ","AGÊNCIA DE REGULAÇÃO DE SERVIÇOS PÚBLICOS"]
[905,"-",{"$f":"CONCATENATE(Tabela2[[#This Row],[Código do Programa]],Tabela2[[#This Row],[Colunas1]],Tabela2[[#This Row],[Nome do Programa2]])","v":"905-OPERAÇÕES ESPECIAIS: DÍVIDA EXTERNA"},"OPERAÇÕES ESPECIAIS: DÍVIDA EXTERNA","PODERES","ESTADO","CUMPRIR COMPROMISSOS DA DIVIDA EXTERNA.","EM ANDAMENTO",80102,"80 - ENCARGOS GERAIS DO ESTADO","ADMINISTRAÇÃO GERAL A CARGO DA SECRETARIA DE ESTADO DA FAZENDA",".",null,null,null,null,null,null,null,null,"30208 - COMPANHIA DE GÁS DO E.S ",".",null,"364 – Ensino Superior","30208"," - ","COMPANHIA DE GÁS DO E.S "]
[907,"-",{"$f":"CONCATENATE(Tabela2[[#This Row],[Código do Programa]],Tabela2[[#This Row],[Colunas1]],Tabela2[[#This Row],[Nome do Programa2]])","v":"907-OPERAÇÕES ESPECIAIS: OUTROS ENCARGOS ESPECIAIS"},"OPERAÇÕES ESPECIAIS: OUTROS ENCARGOS ESPECIAIS","PODERES","GOVERNO DO ESTADO","CUMPRIR COMPROMISSOS NÃO DEFINIDOS EM PROGRAMAS ESPECÍFICOS.","EM ANDAMENTO",80101,"80 - ENCARGOS GERAIS DO ESTADO","ADMINISTRAÇÃO GERAL A CARGO DA SECRETARIA DE ESTADO DE GESTÃO E RECURSOS HUMANOS",".",null,null,null,null,null,null,null,null,"30902 - FUNDO DE DESENVOLVIMENTO ECONÔMICO DO SUL DO ESTADO DO ESPÍRITO SANTO",".",null,"365 – Educação Infantil","30902"," - ","FUNDO DE DESENVOLVIMENTO ECONÔMICO DO SUL DO ESTADO DO ESPÍRITO SANTO"]
[1000,"-",{"$f":"CONCATENATE(Tabela2[[#This Row],[Código do Programa]],Tabela2[[#This Row],[Colunas1]],Tabela2[[#This Row],[Nome do Programa2]])","v":"1000-GESTÃO INTEGRADA DAS ÁGUAS E DA PAISAGEM"},"GESTÃO INTEGRADA DAS ÁGUAS E DA PAISAGEM","AGRICULTURA E MEIO AMBIENTE","SOCIEDADE EM GERAL, EM ESPECIAL SEGMENTOS URBANOS E RURAIS DE ÁREAS CONSIDERADAS ESTRATÉGICAS","PROMOVER A GESTÃO SUSTENTÁVEL DOS RECURSOS HÍDRICOS DO ESTADO POR MEIO DE AÇÕES DE RECUPERAÇÃO E CONSERVAÇÃO AMBIENTAL PARA O DESENVOLVIMENTO ECONÔMICO E SOCIAL COM SUSTENTABILIDADE E SEGURANÇA HÍDRICA.","EM ANDAMENTO",36202,"41 - SECRETARIA DE ESTADO DE MEIO AMBIENTE E RECURSOS HÍDRICOS","COMPANHIA ESPÍRITO SANTENSE DE SANEAMENTO",".",null,null,null,null,null,null,null,null,"31101 - SECRETARIA DE ESTADO DA AGRICULTURA, ABASTECIMENTO, AQUICULTURA E PESCA",".",null,"366 – Educação de Jovens e Adultos","31101"," - ","SECRETARIA DE ESTADO DA AGRICULTURA, ABASTECIMENTO, AQUICULTURA E PESCA"]
[9999,"-",{"$f":"CONCATENATE(Tabela2[[#This Row],[Código do Programa]],Tabela2[[#This Row],[Colunas1]],Tabela2[[#This Row],[Nome do Programa2]])","v":"9999-RESERVA DE CONTINGÊNCIA"},"RESERVA DE CONTINGÊNCIA","PODERES","GOVERNO DO ESTADO","SERVIR DE FONTE COMPENSATÓRIA NA ABERTURA DE CRÉDITOS ADICIONAIS PARA AS DOTAÇÕES QUE SE TORNAREM INSUFICIENTES NO DECORRER DO EXERCÍCIO.","EM ANDAMENTO",60211,"80 - ENCARGOS GERAIS DO ESTADO","FUNDO PREVIDENCIÁRIO",".",null,null,null,null,null,null,null,null,"31201 - INSTITUTO DE DEFESA AGROPECUÁRIA E FLORESTAL DO ESPÍRITO SANTO",".",null,"367 – Educação Especial","31201"," - ","INSTITUTO DE DEFESA AGROPECUÁRIA E FLORESTAL DO ESPÍRITO SANTO"]
[null,null,null,null,null,null,null,null,null,null,null,null,null,null,null,null,null,null,null,null,"31202 - INSTITUTO CAPIXABA DE PESQUISA, ASSISTÊNCIA TÉCNICA E EXTENSÃO RURAL",".",null,"368 – Educação Básica (3)(I)","31202"," - ","INSTITUTO CAPIXABA DE PESQUISA, ASSISTÊNCIA TÉCNICA E EXTENSÃO RURAL"]
[null,null,null,null,null,null,null,null,null,null,null,null,null,null,null,null,null,null,null,null,"31203 - CENTRAIS DE ABASTECIMENTO DO ESPÍRITO SANTO",".",null,"391 – Patrimônio Histórico, Artístico e Arqueológico","31203"," - ","CENTRAIS DE ABASTECIMENTO DO ESPÍRITO SANTO"]
[null,null,null,null,null,null,null,null,null,null,null,null,null,null,null,null,null,null,null,null,"31901 - FUNDO ESPECIAL DE APOIO AO PROGRAMA CAMINHOS DO CAMPO",".",null,"392 – Difusão Cultural","31901"," - ","FUNDO ESPECIAL DE APOIO AO PROGRAMA CAMINHOS DO CAMPO"]
[null,null,null,null,null,null,null,null,null,null,null,null,null,null,null,null,null,null,null,null,"31902 - FUNDO SOCIAL DE APOIO A AGRICULTURA FAMILIAR DO ESTADO DO ESPÍRITO SANTO",".",null,"421 – Custódia e Reintegração Social","31902"," - ","FUNDO SOCIAL DE APOIO A AGRICULTURA FAMILIAR DO ESTADO DO ESPÍRITO SANTO"]
[null,null,null,null,null,null,null,null,null,null,null,null,null,null,null,null,null,null,null,null,"31903 - FUNDO ESPECIAL DE APOIO AO PROGRAMA ESTADUAL DE DESENVOLVIMENTO RURAL SUSTENTÁVEL",".",null,"422 – Direitos Individuais, Coletivos e Difusos","31903"," - ","FUNDO ESPECIAL DE APOIO AO PROGRAMA ESTADUAL DE DESENVOLVIMENTO RURAL SUSTENTÁVEL"]
[null,null,null,null,null,null,null,null,null,null,null,null,null,null,null,null,null,null,null,null,"31904 - FUNDO ESTADUAL DE APOIO À CONSERVAÇÃO E MANUTENÇÃO DAS ESTRADAS QUE INTEGRAM O PROGRAMA CAMINHOS DO CAMPO",".",null,"423 – Assistência aos Povos Indígenas","31904"," - ","FUNDO ESTADUAL DE APOIO À CONSERVAÇÃO E MANUTENÇÃO DAS ESTRADAS QUE INTEGRAM O PROGRAMA CAMINHOS DO CAMPO"]
[null,null,null,null,null,null,null,null,null,null,null,null,null,null,null,null,null,null,null,null,"32101 - SECRETARIA DE ESTADO DA CIÊNCIA, TECNOLOGIA, INOVAÇÃO, EDUCAÇÃO PROFISSIONAL E DESENVOLVIMENTO ECONÔMICO",".",null,"451 – Infra-Estrutura Urbana","32101"," - ","SECRETARIA DE ESTADO DA CIÊNCIA, TECNOLOGIA, INOVAÇÃO, EDUCAÇÃO PROFISSIONAL E DESENVOLVIMENTO ECONÔMICO"]
[null,null,null,null,null,null,null,null,null,null,null,null,null,null,null,null,null,null,null,null,"32202 - FUNDAÇÃO DE AMPARO A PESQUISA E INOVAÇÃO DO ESPÍRITO SANTO",".",null,"452 – Serviços Urbanos","32202"," - ","FUNDAÇÃO DE AMPARO A PESQUISA E INOVAÇÃO DO ESPÍRITO SANTO"]
[null,null,null,null,null,null,null,null,null,null,null,null,null,null,null,null,null,null,null,null,"32203 - INSTITUTO DE PESOS E MEDIDAS DO ESTADO DO ESPÍRITO SANTO",".",null,"453 – Transportes Coletivos Urbanos","32203"," - ","INSTITUTO DE PESOS E MEDIDAS DO ESTADO DO ESPÍRITO SANTO"]
[null,null,null,null,null,null,null,null,null,null,null,null,null,null,null,null,null,null,null,null,"32204 - AGÊNCIA DE DESENVOLVIMENTO DAS  MICRO E  PEQUENAS  EMPRESAS E DO EMPREENDEDORISMO",".",null,"481 – Habitação Rural","32204"," - ","AGÊNCIA DE DESENVOLVIMENTO DAS  MICRO E  PEQUENAS  EMPRESAS E DO EMPREENDEDORISMO"]
[null,null,null,null,null,null,null,null,null,null,null,null,null,null,null,null,null,null,null,null,"32205 - BANCO DE DESENVOLVIMENTO DO ESPÍRITO SANTO S/A",".",null,"482 – Habitação Urbana","32205"," - ","BANCO DE DESENVOLVIMENTO DO ESPÍRITO SANTO S/A"]
[null,null,null,null,null,null,null,null,null,null,null,null,null,null,null,null,null,null,null,null,"32206 - AGÊNCIA DE REGULAÇÃO DE SERVIÇOS PÚBLICOS",".",null,"511 – Saneamento Básico Rural","32206"," - ","AGÊNCIA DE REGULAÇÃO DE SERVIÇOS PÚBLICOS"]
[null,null,null,null,null,null,null,null,null,null,null,null,null,null,null,null,null,null,null,null,"32207 - COMPANHIA DE GÁS DO ESTADO DO ESPÍRITO SANTO",".",null,"512 – Saneamento Básico Urbano","32207"," - ","COMPANHIA DE GÁS DO ESTADO DO ESPÍRITO SANTO"]
[null,null,null,null,null,null,null,null,null,null,null,null,null,null,null,null,null,null,null,null,"32901 - FUNDO ESTADUAL DE CIÊNCIA E TECNOLOGIA",".",null,"541 – Preservação e Conservação Ambiental","32901"," - ","FUNDO ESTADUAL DE CIÊNCIA E TECNOLOGIA"]
[null,null,null,null,null,null,null,null,null,null,null,null,null,null,null,null,null,null,null,null,{"$f":"CONCATENATE(Y67,Z67,AA67,)","v":"32902 - FUNDO DE DESENVOLVIMENTO DAS ATIVIDADES PRODUTIVAS INOVADORAS"},".",null,"542 – Controle Ambiental","32902"," - ","FUNDO DE DESENVOLVIMENTO DAS ATIVIDADES PRODUTIVAS INOVADORAS"]
[null,null,null,null,null,null,null,null,null,null,null,null,null,null,null,null,null,null,null,null,"35101 - SECRETARIA DE ESTADO DE MOBILIDADE E INFRAESTRUTURA",".",null,"543 – Recuperação de Áreas Degradadas","35101"," - ","SECRETARIA DE ESTADO DE MOBILIDADE E INFRAESTRUTURA"]
[null,null,null,null,null,null,null,null,null,null,null,null,null,null,null,null,null,null,null,null,"35201 - DEPARTAMENTO DE EDIFICAÇÕES E DE RODOVIAS DO ESTADO DO ESPÍRITO SANTO",".",null,"544 – Recursos Hídricos","35201"," - ","DEPARTAMENTO DE EDIFICAÇÕES E DE RODOVIAS DO ESTADO DO ESPÍRITO SANTO"]
[null,null,null,null,null,null,null,null,null,null,null,null,null,null,null,null,null,null,null,null,"35203 - COMPANHIA DE TRANSPORTES URBANOS DA GRANDE VITÓRIA",".",null,"545 – Meteorologia","35203"," - ","COMPANHIA DE TRANSPORTES URBANOS DA GRANDE VITÓRIA"]
[null,null,null,null,null,null,null,null,null,null,null,null,null,null,null,null,null,null,null,null,"35207 - DEPARTAMENTO ESTADUAL DE TRÂNSITO (UO EXTINTA)",".",null,"571 – Desenvolvimento Científico","35207"," - ","DEPARTAMENTO ESTADUAL DE TRÂNSITO (UO EXTINTA)"]
[null,null,null,null,null,null,null,null,null,null,null,null,null,null,null,null,null,null,null,null,"35208 - INSTITUTO DE OBRAS PÚBLICAS DO ESTADO DO ESPÍRITO SANTO (UO EXTINTA)",".",null,"572 – Desenvolvimento Tecnológico e Engenharia","35208"," - ","INSTITUTO DE OBRAS PÚBLICAS DO ESTADO DO ESPÍRITO SANTO (UO EXTINTA)"]
[null,null,null,null,null,null,null,null,null,null,null,null,null,null,null,null,null,null,null,null,"35901 - FUNDO ESPECIAL PARA CONSTRUÇÃO, REFORMA E AMPLIAÇÃO DE EQUIPAMENTOS PÚBLICOS ESTADUAIS ",".",null,"573 – Difusão do Conhecimento Científico e Tecnológico","35901"," - ","FUNDO ESPECIAL PARA CONSTRUÇÃO, REFORMA E AMPLIAÇÃO DE EQUIPAMENTOS PÚBLICOS ESTADUAIS "]
[null,null,null,null,null,null,null,null,null,null,null,null,null,null,null,null,null,null,null,null,"35902 - FUNDO ESPECIAL DE APOIO AO PROGRAMA INTERIOR CAPIXABA (UO EXTINTA)",".",null,"605 – Abastecimento","35902"," - ","FUNDO ESPECIAL DE APOIO AO PROGRAMA INTERIOR CAPIXABA (UO EXTINTA)"]
[null,null,null,null,null,null,null,null,null,null,null,null,null,null,null,null,null,null,null,null,"35903 - FUNDO ESTADUAL P/ O FINANC. DE OBRAS E INFRAEST. ESTRATÉGICA P/ O DESENV. DO EST. DO ES",".",null,"606 – Extensão Rural","35903"," - ","FUNDO ESTADUAL P/ O FINANC. DE OBRAS E INFRAEST. ESTRATÉGICA P/ O DESENV. DO EST. DO ES"]
[null,null,null,null,null,null,null,null,null,null,null,null,null,null,null,null,null,null,null,null,"36101 - SECRETARIA DE ESTADO DE SANEAMENTO, HABITAÇÃO E DESENVOLVIMENTO URBANO",".",null,"607 – Irrigação","36101"," - ","SECRETARIA DE ESTADO DE SANEAMENTO, HABITAÇÃO E DESENVOLVIMENTO URBANO"]
[null,null,null,null,null,null,null,null,null,null,null,null,null,null,null,null,null,null,null,null,"36202 - COMPANHIA ESPÍRITO SANTENSE DE SANEAMENTO",".",null,"608 – Promoção da Produção Agropecuária (4)(I)","36202"," - ","COMPANHIA ESPÍRITO SANTENSE DE SANEAMENTO"]
[null,null,null,null,null,null,null,null,null,null,null,null,null,null,null,null,null,null,null,null,"36203 - AGÊNCIA REGULADORA DE SANEAMENTO BÁSICO E INFRAESTRUTURA VIÁRIA DO ESPÍRITO SANTO (UO EXTINTA)",".",null,"609 – Defesa Agropecuária (4)(I)","36203"," - ","AGÊNCIA REGULADORA DE SANEAMENTO BÁSICO E INFRAESTRUTURA VIÁRIA DO ESPÍRITO SANTO (UO EXTINTA)"]
[null,null,null,null,null,null,null,null,null,null,null,null,null,null,null,null,null,null,null,null,"36204 - INSTITUTO DE DESENVOLVIMENTO URBANO E HABITAÇÃO DO ESTADO DO ESPÍRITO SANTO (UO EXTINTA)",".",null,"631 – Reforma Agrária","36204"," - ","INSTITUTO DE DESENVOLVIMENTO URBANO E HABITAÇÃO DO ESTADO DO ESPÍRITO SANTO (UO EXTINTA)"]
[null,null,null,null,null,null,null,null,null,null,null,null,null,null,null,null,null,null,null,null,"36901 - FUNDO ESTADUAL DE HABITAÇÃO DE INTERESSE SOCIAL",".",null,"632 – Colonização","36901"," - ","FUNDO ESTADUAL DE HABITAÇÃO DE INTERESSE SOCIAL"]
[null,null,null,null,null,null,null,null,null,null,null,null,null,null,null,null,null,null,null,null,"37101 - SECRETARIA DE ESTADO DO TURISMO",".",null,"661 – Promoção Industrial","37101"," - ","SECRETARIA DE ESTADO DO TURISMO"]
[null,null,null,null,null,null,null,null,null,null,null,null,null,null,null,null,null,null,null,null,"37901 - FUNDO DE FOMENTO DO TURISMO",".",null,"662 – Produção Industrial","37901"," - ","FUNDO DE FOMENTO DO TURISMO"]
[null,null,null,null,null,null,null,null,null,null,null,null,null,null,null,null,null,null,null,null,"39101 - SECRETARIA DE ESTADO DE ESPORTES E LAZER",".",null,"663 – Mineração","39101"," - ","SECRETARIA DE ESTADO DE ESPORTES E LAZER"]
[null,null,null,null,null,null,null,null,null,null,null,null,null,null,null,null,null,null,null,null,"39901 - FUNDO DE INCENTIVO AO ESPORTE E LAZER DO ESTADO DO ESPÍRITO SANTO",".",null,"664 – Propriedade Industrial","39901"," - ","FUNDO DE INCENTIVO AO ESPORTE E LAZER DO ESTADO DO ESPÍRITO SANTO"]
[null,null,null,null,null,null,null,null,null,null,null,null,null,null,null,null,null,null,null,null,"40101 - SECRETARIA DE ESTADO DA CULTURA",".",null,"665 – Normalização e Qualidade","40101"," - ","SECRETARIA DE ESTADO DA CULTURA"]
[null,null,null,null,null,null,null,null,null,null,null,null,null,null,null,null,null,null,null,null,"40102 - ARQUIVO PÚBLICO DO ESTADO DO ESPÍRITO SANTO",".",null,"691 – Promoção Comercial","40102"," - ","ARQUIVO PÚBLICO DO ESTADO DO ESPÍRITO SANTO"]
[null,null,null,null,null,null,null,null,null,null,null,null,null,null,null,null,null,null,null,null,"40901 - FUNDO DE CULTURA DO ESTADO DO ESPÍRITO SANTO",".",null,"692 – Comercialização","40901"," - ","FUNDO DE CULTURA DO ESTADO DO ESPÍRITO SANTO"]
[null,null,null,null,null,null,null,null,null,null,null,null,null,null,null,null,null,null,null,null,"41101 - SECRETARIA DE ESTADO DE MEIO AMBIENTE E RECURSOS HÍDRICOS",".",null,"693 – Comércio Exterior","41101"," - ","SECRETARIA DE ESTADO DE MEIO AMBIENTE E RECURSOS HÍDRICOS"]
[null,null,null,null,null,null,null,null,null,null,null,null,null,null,null,null,null,null,null,null,"41201 - INSTITUTO ESTADUAL DE MEIO AMBIENTE E RECURSOS HÍDRICOS",".",null,null,"41201"," - ","INSTITUTO ESTADUAL DE MEIO AMBIENTE E RECURSOS HÍDRICOS"]
[null,null,null,null,null,null,null,null,null,null,null,null,null,null,null,null,null,null,null,null,"41202 - AGÊNCIA ESTADUAL DE RECURSOS HÍDRICOS",".",null,"694 – Serviços Financeiros","41202"," - ","AGÊNCIA ESTADUAL DE RECURSOS HÍDRICOS"]
[null,null,null,null,null,null,null,null,null,null,null,null,null,null,null,null,null,null,null,null,"41901 - FUNDO ESTADUAL DO MEIO AMBIENTE",".",null,"695 – Turismo","41901"," - ","FUNDO ESTADUAL DO MEIO AMBIENTE"]
[null,null,null,null,null,null,null,null,null,null,null,null,null,null,null,null,null,null,null,null,"41902 - FUNDO ESTADUAL DE RECURSOS HÍDRICOS E FLORESTAIS DO ESPÍRITO SANTO",".",null,"721 – Comunicações Postais","41902"," - ","FUNDO ESTADUAL DE RECURSOS HÍDRICOS E FLORESTAIS DO ESPÍRITO SANTO"]
[null,null,null,null,null,null,null,null,null,null,null,null,null,null,null,null,null,null,null,null,"42101 - SECRETARIA DE ESTADO DA EDUCAÇÃO",".",null,"722 – Telecomunicações","42101"," - ","SECRETARIA DE ESTADO DA EDUCAÇÃO"]
[null,null,null,null,null,null,null,null,null,null,null,null,null,null,null,null,null,null,null,null,"42201 - FACULDADE DE MÚSICA DO ESPÍRITO SANTO",".",null,"751 – Conservação de Energia","42201"," - ","FACULDADE DE MÚSICA DO ESPÍRITO SANTO"]
[null,null,null,null,null,null,null,null,null,null,null,null,null,null,null,null,null,null,null,null,"42901 - FUNDO ESTADUAL DE APOIO À AMPLIAÇÃO E MELHORIA DAS CONDIÇÕES DE OFERTA DA EDUCAÇÃO INFANTIL E DO ENSINO FUNDAMENTAL NO ESPÍRITO SANTO",".",null,"752 – Energia Elétrica","42901"," - ","FUNDO ESTADUAL DE APOIO À AMPLIAÇÃO E MELHORIA DAS CONDIÇÕES DE OFERTA DA EDUCAÇÃO INFANTIL E DO ENSINO FUNDAMENTAL NO ESPÍRITO SANTO"]
[null,null,null,null,null,null,null,null,null,null,null,null,null,null,null,null,null,null,null,null,"44202 - FUNDAÇÃO ESTADUAL DE INOVAÇÃO EM SAÚDE",".",null,"753 – Combustíveis Minerais (2)(A)","44202"," - ","FUNDAÇÃO ESTADUAL DE INOVAÇÃO EM SAÚDE"]
[null,null,null,null,null,null,null,null,null,null,null,null,null,null,null,null,null,null,null,null,"44901 - FUNDO ESTADUAL DE SAÚDE",".",null,"   754 – Biocombustíveis (2)(A) ","44901"," - ","FUNDO ESTADUAL DE SAÚDE"]
[null,null,null,null,null,null,null,null,null,null,null,null,null,null,null,null,null,null,null,null,"45101 - SECRETARIA DE ESTADO DA SEGURANCA PÚBLICA E DEFESA SOCIAL",".",null,"781 – Transporte Aéreo","45101"," - ","SECRETARIA DE ESTADO DA SEGURANCA PÚBLICA E DEFESA SOCIAL"]
[null,null,null,null,null,null,null,null,null,null,null,null,null,null,null,null,null,null,null,null,"45102 - POLÍCIA CIVIL DO ESTADO DO ESPÍRITO SANTO",".",null,"782 – Transporte Rodoviário","45102"," - ","POLÍCIA CIVIL DO ESTADO DO ESPÍRITO SANTO"]
[null,null,null,null,null,null,null,null,null,null,null,null,null,null,null,null,null,null,null,null,"45103 - POLÍCIA MILITAR DO ESTADO DO ESPÍRITO SANTO",".",null,"783 – Transporte Ferroviário","45103"," - ","POLÍCIA MILITAR DO ESTADO DO ESPÍRITO SANTO"]
[null,null,null,null,null,null,null,null,null,null,null,null,null,null,null,null,null,null,null,null,"45104 - CORPO DE BOMBEIROS MILITAR DO ESTADO DO ESPÍRITO SANTO",".",null,"784 – Transporte Hidroviário","45104"," - ","CORPO DE BOMBEIROS MILITAR DO ESTADO DO ESPÍRITO SANTO"]
[null,null,null,null,null,null,null,null,null,null,null,null,null,null,null,null,null,null,null,null,"45105 - DIRETORIA DE SAÚDE DA POLÍCIA MILITAR",".",null,"785 – Transportes Especiais","45105"," - ","DIRETORIA DE SAÚDE DA POLÍCIA MILITAR"]
[null,null,null,null,null,null,null,null,null,null,null,null,null,null,null,null,null,null,null,null,"45106 - COORDENADORIA ESTADUAL DE PROTEÇÃO E DEFESA CIVIL",".",null,"811 – Desporto de Rendimento","45106"," - ","COORDENADORIA ESTADUAL DE PROTEÇÃO E DEFESA CIVIL"]
[null,null,null,null,null,null,null,null,null,null,null,null,null,null,null,null,null,null,null,null,"45202 - DEPARTAMENTO ESTADUAL DE TRÂNSITO",".",null,"812 – Desporto Comunitário","45202"," - ","DEPARTAMENTO ESTADUAL DE TRÂNSITO"]
[null,null,null,null,null,null,null,null,null,null,null,null,null,null,null,null,null,null,null,null,"45901 - FUNDO ESPECIAL DE REEQUIPAMENTO DA POLÍCIA CIVIL",".",null,"813 – Lazer","45901"," - ","FUNDO ESPECIAL DE REEQUIPAMENTO DA POLÍCIA CIVIL"]
[null,null,null,null,null,null,null,null,null,null,null,null,null,null,null,null,null,null,null,null,"45902 - FUNDO ESPECIAL DE REEQUIPAMENTO DA POLÍCIA MILITAR",".",null,"841 – Refinanciamento da Dívida Interna","45902"," - ","FUNDO ESPECIAL DE REEQUIPAMENTO DA POLÍCIA MILITAR"]
[null,null,null,null,null,null,null,null,null,null,null,null,null,null,null,null,null,null,null,null,"45903 - FUNDO DE SAÚDE DA POLÍCIA MILITAR DO ESPÍRITO SANTO",".",null,"842 – Refinanciamento da Dívida Externa","45903"," - ","FUNDO DE SAÚDE DA POLÍCIA MILITAR DO ESPÍRITO SANTO"]
[null,null,null,null,null,null,null,null,null,null,null,null,null,null,null,null,null,null,null,null,"45904 - FUNDO ESPECIAL DE REEQUIPAMENTO DO CORPO DE BOMBEIROS MILITAR DO ES",".",null,"843 – Serviço da Dívida Interna","45904"," - ","FUNDO ESPECIAL DE REEQUIPAMENTO DO CORPO DE BOMBEIROS MILITAR DO ES"]
[null,null,null,null,null,null,null,null,null,null,null,null,null,null,null,null,null,null,null,null,"45905 - FUNDO DE PROTEÇÃO E DEFESA CIVIL DO ESTADO",".",null,"844 – Serviço da Dívida Externa","45905"," - ","FUNDO DE PROTEÇÃO E DEFESA CIVIL DO ESTADO"]
[null,null,null,null,null,null,null,null,null,null,null,null,null,null,null,null,null,null,null,null,"45906 - FUNDO ESTADUAL DE SEGURANÇA PÚBLICA E DEFESA SOCIAL",".",null,"845 –  Outras Transferências (1)(A)","45906"," - ","FUNDO ESTADUAL DE SEGURANÇA PÚBLICA E DEFESA SOCIAL"]
[null,null,null,null,null,null,null,null,null,null,null,null,null,null,null,null,null,null,null,null,"46101 - SECRETARIA DE ESTADO DA JUSTIÇA",".",null,"846 – Outros Encargos Especiais","46101"," - ","SECRETARIA DE ESTADO DA JUSTIÇA"]
[null,null,null,null,null,null,null,null,null,null,null,null,null,null,null,null,null,null,null,null,"46201 - INSTITUTO DE ATENDIMENTO SOCIOEDUCATIVO DO ESPÍRITO SANTO (UO EXTINTA)",".",null,"847 - Transferências para a Educação Básica (1)(I)","46201"," - ","INSTITUTO DE ATENDIMENTO SOCIOEDUCATIVO DO ESPÍRITO SANTO (UO EXTINTA)"]
[null,null,null,null,null,null,null,null,null,null,null,null,null,null,null,null,null,null,null,null,"46202 - INSTITUTO ESTADUAL DE PROTEÇÃO E DEFESA DO CONSUMIDOR",".",null,"997 - RESERVA DO REGIME PRÓPRIO DE PREVIDÊNCIA DOS SERVIDORES - RPPS","46202"," - ","INSTITUTO ESTADUAL DE PROTEÇÃO E DEFESA DO CONSUMIDOR"]
[null,null,null,null,null,null,null,null,null,null,null,null,null,null,null,null,null,null,null,null,"46901 - FUNDO ROTATIVO DO SISTEMA PENITENCIÁRIO",".",null,"999 - RESERVA DE CONTINGÊNCIA","46901"," - ","FUNDO ROTATIVO DO SISTEMA PENITENCIÁRIO"]
[null,null,null,null,null,null,null,null,null,null,null,null,null,null,null,null,null,null,null,null,"46903 - FUNDO PENITENCIÁRIO ESTADUAL",".",null,null,"46903"," - ","FUNDO PENITENCIÁRIO ESTADUAL"]
[null,null,null,null,null,null,null,null,null,null,null,null,null,null,null,null,null,null,null,null,"46904 - FUNDO ESTADUAL DE DEFESA DO CONSUMIDOR",".",null,null,"46904"," - ","FUNDO ESTADUAL DE DEFESA DO CONSUMIDOR"]
[null,null,null,null,null,null,null,null,null,null,null,null,null,null,null,null,null,null,null,null,"47101 - SECRETARIA DE ESTADO DE TRABALHO, ASSISTÊNCIA E DESENVOLVIMENTO SOCIAL",".",null,null,"47101"," - ","SECRETARIA DE ESTADO DE TRABALHO, ASSISTÊNCIA E DESENVOLVIMENTO SOCIAL"]
[null,null,null,null,null,null,null,null,null,null,null,null,null,null,null,null,null,null,null,null,"47901 - FUNDO ESTADUAL DE ASSISTÊNCIA SOCIAL",".",null,null,"47901"," - ","FUNDO ESTADUAL DE ASSISTÊNCIA SOCIAL"]
[null,null,null,null,null,null,null,null,null,null,null,null,null,null,null,null,null,null,null,null,"47903 - FUNDO PARA A INFÂNCIA E A ADOLESCÊNCIA (UO EXTINTA)",".",null,null,"47903"," - ","FUNDO PARA A INFÂNCIA E A ADOLESCÊNCIA (UO EXTINTA)"]
[null,null,null,null,null,null,null,null,null,null,null,null,null,null,null,null,null,null,null,null,{"$f":"CONCATENATE(Y120,Z120,AA120,)","v":"47904 - FUNDO ESTADUAL DE COMBATE E ERRADICAÇÃO DA POBREZA"},".",null,null,"47904"," - ","FUNDO ESTADUAL DE COMBATE E ERRADICAÇÃO DA POBREZA"]
[null,null,null,null,null,null,null,null,null,null,null,null,null,null,null,null,null,null,null,null,"47905 - FUNDO ESTADUAL DE DEFESA DOS DIREITOS DA PESSOA IDOSA (UO EXTINTA)",".",null,null,"47905"," - ","FUNDO ESTADUAL DE DEFESA DOS DIREITOS DA PESSOA IDOSA (UO EXTINTA)"]
[null,null,null,null,null,null,null,null,null,null,null,null,null,null,null,null,null,null,null,null,"47906 - FUNDO ESTADUAL DO TRABALHO DO ESTADO DO ESPÍRITO SANTO",".",null,null,"47906"," - ","FUNDO ESTADUAL DO TRABALHO DO ESTADO DO ESPÍRITO SANTO"]
[null,null,null,null,null,null,null,null,null,null,null,null,null,null,null,null,null,null,null,null,"48101 - SECRETARIA DE ESTADO DE DIREITOS HUMANOS ",".",null,null,"48101"," - ","SECRETARIA DE ESTADO DE DIREITOS HUMANOS "]
[null,null,null,null,null,null,null,null,null,null,null,null,null,null,null,null,null,null,null,null,"48201 - INSTITUTO DE ATENDIMENTO SOCIOEDUCATIVO DO ESPÍRITO SANTO",".",null,null,"48201"," - ","INSTITUTO DE ATENDIMENTO SOCIOEDUCATIVO DO ESPÍRITO SANTO"]
[null,null,null,null,null,null,null,null,null,null,null,null,null,null,null,null,null,null,null,null,"48901 - FUNDO PARA A INFÂNCIA E A ADOLESCÊNCIA ",".",null,null,"48901"," - ","FUNDO PARA A INFÂNCIA E A ADOLESCÊNCIA "]
[null,null,null,null,null,null,null,null,null,null,null,null,null,null,null,null,null,null,null,null,"48902 - FUNDO ESTADUAL DE DEFESA DOS DIREITOS DA PESSOA IDOSA",".",null,null,"48902"," - ","FUNDO ESTADUAL DE DEFESA DOS DIREITOS DA PESSOA IDOSA"]
[null,null,null,null,null,null,null,null,null,null,null,null,null,null,null,null,null,null,null,null,"48903 - FUNDO ESTADUAL SOBRE DROGAS",".",null,null,"48903"," - ","FUNDO ESTADUAL SOBRE DROGAS"]
[null,null,null,null,null,null,null,null,null,null,null,null,null,null,null,null,null,null,null,null,"48904 - FUNDO ESTADUAL PARA JUVENTUDES",".",null,null,"48904"," - ","FUNDO ESTADUAL PARA JUVENTUDES"]
[null,null,null,null,null,null,null,null,null,null,null,null,null,null,null,null,null,null,null,null,"60201 - INSTITUTO DE PREVIDÊNCIA DOS SERVIDORES DO ESTADO DO ESPÍRITO SANTO",".",null,null,"60201"," - ","INSTITUTO DE PREVIDÊNCIA DOS SERVIDORES DO ESTADO DO ESPÍRITO SANTO"]
[null,null,null,null,null,null,null,null,null,null,null,null,null,null,null,null,null,null,null,null,"60210 - FUNDO FINANCEIRO",".",null,null,"60210"," - ","FUNDO FINANCEIRO"]
[null,null,null,null,null,null,null,null,null,null,null,null,null,null,null,null,null,null,null,null,"60211 - FUNDO PREVIDENCIÁRIO",null,null,null,"60211"," - ","FUNDO PREVIDENCIÁRIO"]
[null,null,null,null,null,null,null,null,null,null,null,null,null,null,null,null,null,null,null,null,"60212 - FUNDO DE PROTEÇÃO SOCIAL DOS MILITARES",null,null,null,"60212"," - ","FUNDO DE PROTEÇÃO SOCIAL DOS MILITARES"]
[null,null,null,null,null,null,null,null,null,null,null,null,null,null,null,null,null,null,null,null,"70101 - SENTENCAS JUDICIÁRIAS",null,null,null,"70101"," - ","SENTENCAS JUDICIÁRIAS"]
[null,null,null,null,null,null,null,null,null,null,null,null,null,null,null,null,null,null,null,null,"80101 - ADMINISTRAÇÃO GERAL A CARGO DA SECRETARIA DE ESTADO DE GESTÃO E RECURSOS HUMANOS",null,null,null,"80101"," - ","ADMINISTRAÇÃO GERAL A CARGO DA SECRETARIA DE ESTADO DE GESTÃO E RECURSOS HUMANOS"]
[null,null,null,null,null,null,null,null,null,null,null,null,null,null,null,null,null,null,null,null,"80102 - ADMINISTRAÇÃO GERAL A CARGO DA SECRETARIA DE ESTADO DA FAZENDA",null,null,null,"80102"," - ","ADMINISTRAÇÃO GERAL A CARGO DA SECRETARIA DE ESTADO DA FAZENDA"]
[null,null,null,null,null,null,null,null,null,null,null,null,null,null,null,null,null,null,null,null,"80103 - SENTENCAS JUDICIÁRIAS (UO EXTINTA)",null,null,null,"80103"," - ","SENTENCAS JUDICIÁRIAS (UO EXTINTA)"]
[null,null,null,null,null,null,null,null,null,null,null,null,null,null,null,null,null,null,null,null,"80104 - ADMINISTRAÇÃO GERAL A CARGO DA SECRETARIA DE ESTADO DE ECONOMIA E PLANEJAMENTO",null,null,null,"80104"," - ","ADMINISTRAÇÃO GERAL A CARGO DA SECRETARIA DE ESTADO DE ECONOMIA E PLANEJAMENTO"]